Cogmind - Beta 11.1 @@@ ROGUE MODE // 2022.08.10 @ 20:05:57 Player: Benkyo Result: Establishing 0b11! Performance ------------- Evolutions (9) 4500 Regions Visited (35) 7000 Robots Destroyed (467) 2335 Value Destroyed (24085) 24085 Prototype IDs (303) 6060 Alien Tech Used (12) 2400 Bonus (36739) 36739 TOTAL SCORE: 83119 Bonus ------- High Alert Combat Kills 3470 Follower Combat Kills 3585 Network Hubs Disabled 400 Met Data Miner 300 Destroyed Z-Imprinter 1000 Triggered Deep Caves Wall 500 Exposed GOLEM Chamber 500 Met Warlord at Base 500 MAIN.C Attacked Warlord 500 Warlord Defense Kills 714 Built Enhanced Grunts 300 A7 Reached Mainframe 300 Met R17 at Cetus 500 Met Warlord at Research 2000 Destroyed MAIN.C Guards 500 Met MAIN.C 5000 Destroyed MAIN.C Shell 5000 Destroyed MAIN.C 10000 Win 3000 Friendly Fire -1330 Cogmind --------- Core Integrity 1600/1600 Matter 425/425 Energy 1819/1840 System Corruption 0% Temperature Cool (14) Movement Treading (155) Location 0b11 Command Parts ------- > --- POWER (3) -------- Zero-point Reactor Vortex Chain Reactor > --- PROPULSION (6) --- Biometal Heavy Treads Enhanced Armored Heavy Treads Advanced Heavy Siege Treads > --- UTILITY (15) ----- Coolant Network Huge Storage Unit Assembled Biocell Array Spectral Analyzer Assembled Combat Suite Advanced Targeting Computer Advanced Targeting Computer Improved Weapon Cycler Centrium Heavy Armor Plating SHELL Armor Long-range Tractor Beam > --- WEAPON (2) ------- Potential Cannon > --- INVENTORY (25) --- Light Antimatter Reactor Zero-point Reactor Experimental Cooling System Experimental Coolant Injector Experimental Energy Well (600) Zionite Biocell (600) Precision Matter Filter Experimental Transmission Jammer Medium Regenerative Plating Antimissile System Experimental System Purifier Transdimensional Reconstructor Microwarp Drive Warp Gun Latent Energy Streamer Enhanced Nova Cannon Hypervelocity Multirail Hypercooled Linear Accelerator Graviton Cannon Graviton Cannon Omega Cannon Neutron Missile Launcher Ragnarok Missile Launcher Peak State ------------ > --- POWER ------------ Quantum Reactor Vortex Chain Reactor > --- PROPULSION ------- Improved Heavy Siege Treads Biometal Heavy Treads Biometal Heavy Treads > --- UTILITY ---------- Coolant Network Huge Storage Unit Assembled Biocell Array Assembled Combat Suite Experimental Transmission Jammer Assembled Alloy Armor SHELL Armor System Mapper Ghost Barrier Minesniffer Drone Bay GOLEM Unit > --- WEAPON ----------- Assembled Focal Cannon Enhanced Nova Cannon > --- INVENTORY -------- Experimental Coolant Injector Experimental Energy Well Zionite Biocell Experimental Sensor Array Precision Matter Filter Improved Weapon Cycler Medium Regenerative Plating Advanced Force Field Point Defense Array Antimissile System Antimissile System Advanced Component Analysis Suite Improved System Restoration Module Transdimensional Reconstructor Core Regenerator Microwarp Drive Warp Gun Latent Energy Streamer Potential Cannon Hypercooled Linear Accelerator Omega Cannon Neutron Missile Launcher [Rating: 250] Favorites ----------- Power Deuterium Engine Engine Deuterium Engine Power Core Neutrino Core Reactor Assembled Flux Generator Propulsion Armored Treads Treads Armored Treads Leg Assembled Alloy Leg Wheel Armored Wheel Hover Unit Zionite Glidesys I Utility Huge Storage Unit Device Experimental Sensor Array Storage Huge Storage Unit Processor Improved Signal Interpreter Hackware Hacking Suite Protection Assembled Alloy Armor Artifact Microwarp Drive Weapon Assembled Focal Cannon Energy Gun Improved Medium Laser Energy Cannon Assembled Focal Cannon Ballistic Gun KE Penetrator Ballistic Cannon Flak Cannon Launcher Long-range Missile Launcher Special Weapon RU-N14's Throwing Claymores Impact Weapon Heavy Flail Slashing Weapon Sigix Broadsword Piercing Weapon Makeshift Spear Build | -11 -10 -10 -9 -9 -9 -8 -8 -7 -7 -7 -7 -6 -6 -6 -6 -6 -6 -5 -5 -5 -5 -5 -5 -4 -4 -4 -4 -3 -3 -3 -2 -2 -2 -1 -1 ------- Run | Scr Mat Min Mat Min Exi Min Mat Fac Low Low Dat Pro Fac Low Low Zio Dee Pro Fac Ext Cet Arc Hub Fac Upp Upp War Pro Res Tes Res Qua Sec Acc Com Slots Evolved 18 | . . . 2 . . . 2 2 . . . . 2 . . . . . 2 . . . . 2 . . . . 2 . 2 . . 2 . Power 1 | . . . . . . . . . . . . . 1 . . . . . . . . . . . . . . . . . . . . . . Propulsion 4 | . . . . . . . . . . . . . . . . . . . 1 . . . . 1 . . . . 2 . . . . . . Utility 13 | . . . 2 . . . 2 2 . . . . 1 . . . . . 1 . . . . 1 . . . . . . 2 . . 2 . Weapon . | . . . . . . . . . . . . . . . . . . . . . . . . . . . . . . . . . . . . Parts Attached 574 | 7 7 7 19 4 2 3 56 27 10 12 . 18 28 17 7 16 42 1 10 19 10 15 10 11 10 21 12 14 8 32 12 10 30 34 33 Power 28 | 1 1 1 3 . . . 2 2 . . . 1 1 1 . 1 3 . . . 2 1 1 . . . 1 . . . . . 1 1 4 Engine 15 | 1 1 1 3 . . . 2 2 . . . 1 1 . . 1 2 . . . . . . . . . . . . . . . . . . Core 1 | . . . . . . . . . . . . . . 1 . . . . . . . . . . . . . . . . . . . . . Reactor 12 | . . . . . . . . . . . . . . . . . 1 . . . 2 1 1 . . . 1 . . . . . 1 1 4 Propulsion 64 | 2 . 3 5 1 . 1 10 2 . . . 8 . 3 2 . 6 . 2 1 . 4 . 1 . 2 . 2 1 1 2 . . 1 4 Treads 41 | 2 . 1 4 1 . 1 5 2 . . . 3 . 2 1 . 3 . 1 . . 2 . 1 . 2 . 1 1 1 2 . . 1 4 Leg 7 | . . . . . . . . . . . . 1 . . . . 1 . 1 1 . 2 . . . . . 1 . . . . . . . Wheel 14 | . . 2 1 . . . 5 . . . . 4 . 1 1 . . . . . . . . . . . . . . . . . . . . Hover 2 | . . . . . . . . . . . . . . . . . 2 . . . . . . . . . . . . . . . . . . Flight . | . . . . . . . . . . . . . . . . . . . . . . . . . . . . . . . . . . . . Utility 384 | 2 5 . 4 3 . 2 27 12 10 12 . 7 22 13 5 11 20 1 7 16 7 10 9 10 9 19 9 11 7 22 8 10 28 28 18 Device 245 | 1 1 . 3 2 . 1 13 6 6 8 . 5 15 10 5 2 5 1 4 13 3 6 8 6 7 15 5 8 5 13 4 6 23 24 11 Storage 16 | 1 3 . . . . . 3 . . . . 1 . . . . 2 . . . . . . . 1 1 . . . 1 1 . . 2 . Processor 20 | . . . . . . 1 2 1 . . . . . . . 7 2 . . 1 . . . 1 . . 1 . . . . . . . 4 Hackware 9 | . . . . . . . . 2 . . . . 3 . . 1 . . . . . . . 1 . . . . . 1 . . . 1 . Protection 92 | . 1 . 1 1 . . 9 3 4 4 . 1 4 3 . 1 11 . 3 2 4 4 1 2 1 3 3 3 2 7 3 4 3 1 3 Artifact 2 | . . . . . . . . . . . . . . . . . . . . . . . . . . . . . . . . . 2 . . Weapon 98 | 2 1 3 7 . 2 . 17 11 . . . 2 5 . . 4 13 . 1 2 1 . . . 1 . 2 1 . 9 2 . 1 4 7 Energy Gun 17 | 1 . . 1 . . . 2 . . . . . . . . 1 4 . 1 . . . . . 1 . 1 . . 5 . . . . . Energy Cannon 19 | . . . 1 . . . . 2 . . . 1 2 . . . 4 . . 1 1 . . . . . . . . . 1 . . 1 5 Ballistic Gun 27 | 1 1 3 5 . 2 . 7 4 . . . . 1 . . 1 2 . . . . . . . . . . . . . . . . . . Ballistic Cannon 14 | . . . . . . . 7 1 . . . . . . . . . . . 1 . . . . . . . . . 1 . . . 2 2 Launcher 11 | . . . . . . . . 1 . . . . 2 . . . 2 . . . . . . . . . 1 . . 3 1 . . 1 . Special Weapon 3 | . . . . . . . . . . . . 1 . . . 1 1 . . . . . . . . . . . . . . . . . . Impact Weapon 5 | . . . . . . . 1 3 . . . . . . . 1 . . . . . . . . . . . . . . . . . . . Slashing Weapon 1 | . . . . . . . . . . . . . . . . . . . . . . . . . . . . . . . . . 1 . . Piercing Weapon 1 | . . . . . . . . . . . . . . . . . . . . . . . . . . . . 1 . . . . . . . Special Melee Weapon . | . . . . . . . . . . . . . . . . . . . . . . . . . . . . . . . . . . . . Unidentified Prototypes 64 | . . . 2 1 . . . . 1 . . 3 1 . . 8 14 . . . 3 1 . . . . 6 . . 10 1 2 8 1 2 Corrupted Parts 1 | . . . . . . . . . . . . . . . . . . . . . . 1 . . . . . . . . . . . . . System Corruption 10 | . . . . . . . . . . . . . . . . . . . . . . 10 . . . . . . . . . . . . . Parts Lost 30 | . . 6 6 . . 2 8 . . . . . 1 1 . . . . 1 . 1 . . . . . . . . . . . . . 4 Power 3 | . . 1 . . . . . . . . . . 1 . . . . . . . . . . . . . . . . . . . . . 1 Propulsion 9 | . . 2 3 . . 1 2 . . . . . . . . . . . . . . . . . . . . . . . . . . . 1 Utility 10 | . . . 1 . . 1 3 . . . . . . 1 . . . . 1 . 1 . . . . . . . . . . . . . 2 Weapon 8 | . . 3 2 . . . 3 . . . . . . . . . . . . . . . . . . . . . . . . . . . . Highest Loss Streak 4 | . . 4 2 . . 2 3 . . . . . 1 1 . . . . 1 . 1 . . . . . . . . . . . . . 3 To Critical Strikes . | . . . . . . . . . . . . . . . . . . . . . . . . . . . . . . . . . . . . Average Slot Usage (%) 88 | . 99 99 99 99 77 100 99 99 93 91 92 91 92 92 93 92 88 86 84 87 83 91 94 83 83 83 77 78 75 72 68 69 68 70 68 Engine 4 | . 14 14 11 11 11 11 9 7 7 7 7 7 12 6 6 6 4 . . . . . . . . . . . . . . . . . . Reactor 2 | . . . . . . . . . . . . . . . . . 4 6 5 5 5 11 11 5 4 5 5 5 4 4 4 4 3 5 6 Treads 9 | . 28 15 10 10 11 11 9 . 15 15 15 14 . 4 11 6 4 . . 1 . . . 2 5 5 10 10 12 14 13 13 12 11 10 Leg 2 | . . . . . . . . . . . . . . . . . 3 13 13 15 17 15 17 12 10 9 . . 1 . . . . . . Wheel 2 | . . 12 11 11 11 11 8 15 . . . . 13 7 1 6 4 . . . . . . . . . . . . . . . . . . Device 19 | . 12 . 22 21 22 22 18 21 22 22 23 22 19 19 20 18 16 20 22 21 13 18 16 17 20 17 24 25 20 15 16 15 16 18 17 Storage 8 | . 13 14 11 11 11 11 9 7 7 7 7 7 6 6 6 6 8 13 11 11 11 11 11 10 10 9 10 10 9 9 8 8 8 7 7 Processor 10 | . . . . . . 9 18 15 15 15 15 15 13 13 13 16 15 6 5 8 11 11 11 11 10 10 10 10 9 5 4 4 4 3 6 Hackware 1 | . . . . . . . . 13 8 . . . 5 . . . . . . . . . . 2 . . . . . 3 4 4 4 6 . Protection 8 | . 1 14 11 10 11 1 8 3 . 6 7 7 6 13 13 11 9 13 11 8 10 8 11 9 9 13 6 5 6 8 8 10 7 7 10 Energy Cannon 6 | . . . 4 . . . . 4 7 7 7 6 5 6 6 4 7 13 11 10 10 11 11 10 10 10 9 10 8 5 7 8 7 6 3 Ballistic Gun 5 | . 24 27 11 11 . 22 10 7 7 7 7 7 5 6 6 6 2 . . . . . . . . . . . . . . . . . . Naked Turns . | . . . . . . . . . . . . . . . . . . . . . . . . . . . . . . . . . . . . Heaviest Build 235 | 15 92 92 99 99 99 99 112 116 123 123 123 123 142 141 141 141 168 162 168 168 167 165 165 168 167 174 176 176 170 183 200 208 201 219 235 Greatest Support 250 | 40 40 40 40 12 12 12 42 40 40 40 40 40 24 24 40 12 80 60 60 85 85 85 85 85 95 180 180 180 250 235 235 220 220 225 235 Greatest Overweight (x) 11 | 1 2 3 8 8 8 8 9 4 3 3 3 6 5 11 11 11 11 2 2 2 1 5 1 2 3 2 . 1 . . . . . . 1 Average Overweight (x) 3 | . 1 2 6 7 7 7 7 3 2 2 3 3 5 9 4 10 7 2 2 1 1 2 1 1 1 1 . . . . . . . . . Largest Inventory Capacity 25 | 8 25 25 25 25 25 25 25 25 25 25 25 25 25 25 25 25 25 25 25 25 25 25 25 25 25 25 25 25 25 25 25 25 25 25 25 Average Capacity 24 | 7 21 25 25 25 25 25 25 25 25 25 25 25 25 25 25 25 23 25 25 25 25 25 25 25 24 24 25 25 25 25 25 25 25 25 25 Most Carried 25 | 7 25 25 25 25 25 25 25 25 25 25 24 25 25 25 25 25 25 25 25 25 25 25 25 25 25 25 25 25 25 25 25 25 25 25 25 Average Carried 24 | 4 16 23 24 24 24 23 24 24 24 24 24 24 24 24 25 24 21 25 24 24 24 24 24 24 22 22 23 25 24 24 24 24 24 24 23 Final Capacity 25 | 8 25 25 25 25 25 25 25 25 25 25 25 25 25 25 25 25 25 25 25 25 25 25 25 25 25 25 25 25 25 25 25 25 25 25 25 Final Carried 25 | 4 25 25 25 25 23 25 25 25 25 24 24 25 24 25 25 25 25 25 25 24 24 25 25 23 23 22 25 25 25 25 25 25 22 24 25 Class Distribution -------------------- 30% | Mutant 19% | Golem 17% | Skirmisher 10% | Hacker-Mutant 5% | Commander-Golem 4% | Scavenger-Skirmisher 3% | Hacker-Skirmisher 3% | Generator-Mutant Dominant Class ---------------- Mutant | -10/Materials Mutant | -10/Mines Mutant | -9/Materials Mutant | -9/Mines Mutant | -9/Exiles Mutant | -8/Mines Mutant | -8/Materials Hacker-Skirmisher | -7/Factory Mutant | -7/Lower Caves Mutant | -7/Lower Caves Skirmisher | -7/Data Miner Skirmisher | -6/Proximity Caves Mutant | -6/Factory Skirmisher | -6/Lower Caves Scavenger-Skirmisher | -6/Lower Caves Skirmisher | -6/Zion Golem | -6/Deep Caves Golem | -5/Proximity Caves Golem | -5/Factory Commander-Golem | -5/Extension Commander-Golem | -5/Cetus Commander-Golem | -5/Archives Golem | -5/Hub_04(d) Golem | -4/Factory Golem | -4/Upper Caves Golem | -4/Upper Caves Commander-Golem | -4/Warlord Golem | -3/Proximity Caves Scavenger-Golem | -3/Research Hacker-Mutant | -3/Testing Hacker-Mutant | -2/Research Hacker-Mutant | -2/Quarantine Hacker-Mutant | -2/Section 7 Hacker-Mutant | -1/Access Generator-Mutant | -1/Command Resources | -11 -10 -10 -9 -9 -9 -8 -8 -7 -7 -7 -7 -6 -6 -6 -6 -6 -6 -5 -5 -5 -5 -5 -5 -4 -4 -4 -4 -3 -3 -3 -2 -2 -2 -1 -1 ----------- Run | Scr Mat Min Mat Min Exi Min Mat Fac Low Low Dat Pro Fac Low Low Zio Dee Pro Fac Ext Cet Arc Hub Fac Upp Upp War Pro Res Tes Res Qua Sec Acc Com Matter Collected 11592 | 291 175 553 516 163 . 308 1412 236 1438 701 . 535 314 403 140 42 642 30 95 211 100 115 172 99 101 220 120 140 80 369 144 29 320 438 940 Remotely 211 | . . . . . . . . 135 . . . . . . . . . . . . . . . . . . . . . . . . . . 76 Salvage Created 25789 | 119 249 687 1681 187 . 516 1501 337 1017 196 . 254 763 643 389 . 1251 121 832 686 448 387 554 322 932 1398 413 566 819 1271 588 319 1627 2278 2438 Parts 1235 | 6 29 44 96 13 . 35 87 17 26 6 . 7 41 19 21 . 30 11 50 31 23 28 16 11 20 66 17 26 37 89 23 13 77 112 108 Haulers Intercepted 7 | . . . 2 . . . . . . . . 1 1 . . . . . . . . . . . . . . . . 1 . . 1 1 . Recyclers Shooed 3 | . 1 . 1 . . . . . . . . . . . . . . . . . . . . . . . . . . . . . 1 . . Parts Field Recycled . | . . . . . . . . . . . . . . . . . . . . . . . . . . . . . . . . . . . . Retrieved Matter . | . . . . . . . . . . . . . . . . . . . . . . . . . . . . . . . . . . . . Parts Self-Destructed 194 | . . . . . . . . . 18 . . 21 . 18 26 . . 9 . . . . . . 19 61 . 22 . . . . . . . Prevented 2 | . . . . . . . . . . 2 . . . . . . . . . . . . . . . . . . . . . . . . . Kills | -11 -10 -10 -9 -9 -9 -8 -8 -7 -7 -7 -7 -6 -6 -6 -6 -6 -6 -5 -5 -5 -5 -5 -5 -4 -4 -4 -4 -3 -3 -3 -2 -2 -2 -1 -1 ------- Run | Scr Mat Min Mat Min Exi Min Mat Fac Low Low Dat Pro Fac Low Low Zio Dee Pro Fac Ext Cet Arc Hub Fac Upp Upp War Pro Res Tes Res Qua Sec Acc Com Combat Hostiles Destroyed 413 | . 9 21 28 8 . 10 35 6 3 1 . 3 15 10 10 . 47 4 12 9 6 3 6 3 9 19 5 4 8 19 11 4 14 29 42 Guns 119 | . 9 21 12 8 . 10 27 4 2 1 . 2 2 6 4 . 5 . . . . . . . . . . . . 6 . . . . . Cannons 214 | . . . 16 . . . 8 2 1 . . 1 4 2 6 . 3 4 12 9 6 3 4 3 9 19 5 4 8 11 7 3 14 24 26 AOE 63 | . . . . . . . . . . . . . 8 . . . 34 . . . . . 1 . . . . . . 2 4 . . 5 9 Classes Destroyed 28 | 2 3 1 5 . . 2 1 . 2 1 . . 3 . . . 3 . . . . . . 1 . 2 . . . . 1 . 1 . . Worker 14 | . . . 2 . . 2 2 1 . . . . . . . . . . . . . . . . . . . . . . . . . 1 6 Builder 10 | . . . . . . 1 . . . . . . . . . . . . . . . . . . . . . . 1 2 . . 4 2 . Tunneler 4 | 2 . . . . . . . . . . . . . . . . . . 1 . . . . . . . . . . . . . . 1 . Hauler 7 | . . . 2 . . . . . . . . 1 1 . . . . . . . . . . . . . . . . 1 . . 1 1 . Recycler 12 | 1 . . 2 . . 2 . . . . . . 2 . . . . . . . . . 1 . . . . . . . . . 2 1 1 Minesweeper 2 | . . . . . . . . . . . . . . . . . . . . . . . . . . 2 . . . . . . . . . Mechanic 1 | . . . . . . . . . . . . . . . . . . . . . . . . 1 . . . . . . . . . . . Operator 11 | . . . 1 . . . 2 . . . . . . . . . . . . 1 . 3 . 1 . . . . . 2 . . . . 1 Watcher 35 | . 3 . 5 . . . 4 . . . . . . . . . . . 1 1 2 . 2 1 . . . . 3 2 1 . 4 4 2 Swarmer 66 | . 6 3 3 4 . 6 8 . . . . . 2 . 6 . . 4 1 . 1 . . . . 4 . . . . 5 . 4 5 4 Grunt 136 | . 3 16 15 2 . 3 16 5 1 . . 3 2 8 3 . . . 1 . 2 . 5 . 7 11 4 . 4 5 3 . 1 7 9 Brawler 7 | . . . 1 . . . 1 . 1 . . . . 1 . . . . 1 . . . . . . . . . . . 1 . . . 1 Duelist 6 | . . . . . . 1 1 . . . . . . 1 . . . . . . . . . . 1 . . . . . . . . . 2 Protector 1 | . . . . . . . . . . . . . 1 . . . . . . . . . . . . . . . . . . . . . . Researcher 1 | . . . . . . . . . . . . . . . . . . . . . . . . . . . . . . . . . 1 . . Sentry 46 | . . . 9 . . . 7 . . . . . . . 1 . . . 3 7 . 3 1 1 1 2 . 1 2 . . . 2 2 4 Specialist 6 | . . . . . . . . . . . . . 2 . . . . . 2 . . . . . . . 1 . . . . . . . 1 Hunter 21 | . . . . . . . 2 1 . . . . 2 . . . . . . 2 . . . . . . . 1 2 4 . 2 . 4 1 Programmer 55 | . . . . . . . . . 1 . . . 5 . . . . . 4 . . . . 2 . 2 . 2 . 10 . . 5 10 14 Heavy 3 | . . . . . . . . . . . . . 1 . . . . . . . . . . . . . . . . . . . 1 1 . Cetus Guard 3 | . . . . . . . . . . . . . . . . . . . . . 3 . . . . . . . . . . . . . . Quarantine Guard 2 | . . . . . . . . . . . . . . . . . . . . . . . . . . . . . . . . 2 . . . S7 Guard 1 | . . . . . . . . . . . . . . . . . . . . . . . . . . . . . . . . . 1 . . M Guard 2 | . . . . . . . . . . . . . . . . . . . . . . . . . . . . . . . . . . . 2 Combat Programmer 2 | . . . . . . . . . . . . . . . . . . . . . . . . . . . . . . . . . . . 2 Striker 2 | . . . . . . . . . . . . . . . . . . . . . . . . . . . . . . . 2 . . . . Z-Technician 4 | . . . . . . . . . . . . . . . . . 4 . . . . . . . . . . . . . . . . . . Z-Light 3 | . . . . . . . . . . . . . . . . . 3 . . . . . . . . . . . . . . . . . . Decomposer 9 | . . . . . . . . . 2 . . . . . . . . 1 . . . . . . . 3 . 3 . . . . . . . Packrat 3 | . . . . . . . . . . . . . . . . . . . . . . . . . 3 . . . . . . . . . . Samaritan 9 | . . . . . . . . . 2 4 . . . . . . . . . . . . . . . 1 . 2 . . . . . . . Tinkerer 1 | . . . . . . . . . . . . . . . . . . . . . . . . . . 1 . . . . . . . . . Thief 1 | . . . . . . . . . . 1 . . . . . . . . . . . . . . . . . . . . . . . . . Assembler 2 | . . . . . . . . . . . . . . . . . 2 . . . . . . . . . . . . . . . . . . Assembled 40 | . . 2 . 2 . . . . . . . . . . . . 36 . . . . . . . . . . . . . . . . . . Golem 8 | . . . . . . . . . . . . . . . . . 8 . . . . . . . . . . . . . . . . . . Best Kill Streak 38 | 2 3 6 3 3 . 3 5 4 2 1 . 2 10 4 4 . 38 4 3 2 3 5 3 2 4 5 4 2 6 5 7 2 4 13 10 Combat Bots Only 36 | . 3 6 3 3 . 3 5 3 2 1 . 2 8 4 4 . 36 4 3 2 3 3 3 2 4 5 4 2 4 4 7 2 4 10 8 Max Kills in Single Turn 28 | 1 1 1 2 2 . 1 2 1 1 1 . 1 6 2 1 . 28 1 1 1 1 1 1 1 2 2 1 2 2 3 3 1 1 3 3 Gunslinging 1 | . . . . 1 . . . . . . . . . . . . . . . . . . . . . . . . . . . . . . . Exploded 27 | . . . . . . . . . . . . . 5 . . . 27 . . . . . 1 . . . . . . 2 3 . . 2 2 Melee . | . . . . . . . . . . . . . . . . . . . . . . . . . . . . . . . . . . . . Uniques/NPCs Destroyed 4 | . . . . . . . . . . . . . . . . . 1 . . . 1 . . . . . . . . . . . . . 2 Z-Imprinter (-6/Deep Caves) Revision 17 (-5/Cetus) MAIN.C Shell (-1/Command) MAIN.C (-1/Command) Combat | -11 -10 -10 -9 -9 -9 -8 -8 -7 -7 -7 -7 -6 -6 -6 -6 -6 -6 -5 -5 -5 -5 -5 -5 -4 -4 -4 -4 -3 -3 -3 -2 -2 -2 -1 -1 -------- Run | Scr Mat Min Mat Min Exi Min Mat Fac Low Low Dat Pro Fac Low Low Zio Dee Pro Fac Ext Cet Arc Hub Fac Upp Upp War Pro Res Tes Res Qua Sec Acc Com Damage Taken 21569 | . 260 978 1350 156 . 494 2106 346 73 81 . 223 625 686 400 . 588 . 310 507 638 21 891 162 564 283 73 144 385 912 416 330 1097 1727 4743 Core 1975 | . 43 170 193 8 . 83 350 65 . . . . 72 37 34 . 95 . . 41 37 . 72 15 16 . . . 62 17 61 . 169 37 298 Absorbed by Shields 4609 | . . . . . . . . . . . . . . . . . . . . 10 41 . . . . . 7 133 155 241 414 338 481 1464 1325 Reduced by Siege Mode 656 | . . . . . . . . . . . . . . . . . . . . . . . . . 29 29 . . 12 5 38 18 56 187 282 Redirected to Shielding 138 | . . 9 23 . . . . . . . . . . . . . 106 . . . . . . . . . . . . . . . . . . Regen/Repaired (Parts) 5448 | . 323 . 11 . . . 230 91 . . . . . . . . . . . . . . . . . . . . . 240 139 191 1519 794 1910 Core Remaining (%) 70 | 100 . 14 . . . 29 36 . . . . 90 . . . . . 72 . . . . 85 . . . . 97 . 93 . . 58 . 100 Volleys Fired 1404 | 7 32 54 101 13 . 43 130 24 42 21 . 20 31 32 15 1 90 20 28 36 22 13 23 33 37 55 21 17 34 76 29 15 83 83 123 Largest 2 | 2 2 2 2 2 . 2 2 2 2 2 . 2 2 2 2 1 2 2 2 2 2 2 2 2 2 2 2 2 2 2 2 2 2 2 2 Hottest 200 | 70 70 40 88 79 . 46 92 108 108 108 . 108 108 68 68 35 123 50 50 50 50 50 50 50 50 50 50 50 50 100 145 50 50 120 200 Shots Fired 2484 | 14 64 107 203 27 . 88 260 44 47 28 . 38 55 59 29 1 124 37 51 68 42 26 42 52 65 105 36 33 66 126 47 26 150 155 169 Gun 877 | 14 64 107 149 27 . 88 220 23 5 7 . 20 21 27 15 . 46 . . . . . . . . . . . . 44 . . . . . Cannon 1586 | . . . 54 . . . 40 21 42 21 . 18 28 32 14 1 68 37 51 68 42 26 42 52 65 105 36 33 66 82 45 26 150 152 169 Launcher 15 | . . . . . . . . . . . . . 6 . . . 4 . . . . . . . . . . . . . 2 . . 3 . Special 6 | . . . . . . . . . . . . . . . . . 6 . . . . . . . . . . . . . . . . . . Kinetic 802 | 7 49 107 116 13 . 88 217 23 5 7 . 20 21 27 15 . 16 . . . . . . . . . . . . 2 . . . 5 64 Thermal 1549 | 7 15 . 87 14 . . 43 21 42 21 . 18 28 32 14 1 30 37 51 68 42 26 42 52 65 105 36 33 66 80 45 26 150 147 105 Explosive 21 | . . . . . . . . . . . . . 6 . . . 10 . . . . . . . . . . . . . 2 . . 3 . Electromagnetic 38 | . . . . . . . . . . . . . . . . . 38 . . . . . . . . . . . . . . . . . . Entropic 44 | . . . . . . . . . . . . . . . . . . . . . . . . . . . . . . 44 . . . . . Phasic 30 | . . . . . . . . . . . . . . . . . 30 . . . . . . . . . . . . . . . . . . Robot Hit Streak 42 | 6 5 12 18 5 . 31 19 15 12 15 . 10 12 22 13 . 17 4 20 21 21 32 15 19 30 27 21 17 23 30 13 17 21 32 42 Robot Miss Streak 4 | 1 4 3 2 3 . 4 4 3 2 2 . 2 3 2 1 . 3 2 1 2 2 1 1 1 1 1 1 1 1 2 2 . 1 3 1 Penetration Max 1 | . . . . . . . . 1 . . . 1 1 1 . . . . . . . . . . . . . . . . . . . . . Secondary Targets 11 | . . 3 . 2 . 2 3 . . . . . . . . . . . . . . . . . . . . . . 1 . . . . . Max Gunslinging Chain 1 | . . 1 . 1 . 1 1 . . . . . . . . . . . . . . . . . . . . . . 1 . . . . . Shots Hit Robots 1667 | 9 34 79 145 15 . 62 192 33 39 25 . 30 30 39 22 . 92 7 33 57 30 17 19 17 38 73 26 22 50 75 25 17 77 101 137 Core Hits 902 | 4 18 38 53 11 . 23 101 13 20 8 . 8 36 19 12 . 103 5 18 20 14 10 10 7 19 40 17 11 20 39 18 10 41 54 82 Critical Kills 16 | . . 1 1 . . . . . . . . . 1 4 2 . . . . . . . . . . . . . . . . . . . 7 Critical Parts Destroyed 6 | . . 1 . . . . . . . 1 . 1 . . 1 . 1 . . . . . . . . . . . . 1 . . . . . Critical Strikes 36 | 2 . 2 3 . . . 2 . . 1 . 1 1 4 3 . 2 . . . . . . . . . . . . 1 . . . 1 13 Burn 6 | 2 . . 2 . . . 2 . . . . . . . . . . . . . . . . . . . . . . . . . . . . Meltdown 10 | . . . . . . . . . . . . . 1 2 . . . . . . . . . . . . . . . . . . . . 7 Destroy 11 | . . 2 1 . . . . . . 1 . 1 . 2 3 . 1 . . . . . . . . . . . . . . . . . . Blast 7 | . . . . . . . . . . . . . . . . . . . . . . . . . . . . . . . . . . 1 6 Detonate 1 | . . . . . . . . . . . . . . . . . . . . . . . . . . . . . . 1 . . . . . Intensify 1 | . . . . . . . . . . . . . . . . . 1 . . . . . . . . . . . . . . . . . . Melee Attacks 12 | . . . . . . . 1 3 . . . . . . . 7 . . . . . . . . . . . . . . . . 1 . . Impact 11 | . . . . . . . 1 3 . . . . . . . 7 . . . . . . . . . . . . . . . . . . . Slashing 1 | . . . . . . . . . . . . . . . . . . . . . . . . . . . . . . . . . 1 . . Piercing . | . . . . . . . . . . . . . . . . . . . . . . . . . . . . . . . . . . . . Sneak Attacks 1 | . . . . . . . . . . . . . . . . . . . . . . . . . . . . . . . . . 1 . . Combat Hostiles . | . . . . . . . . . . . . . . . . . . . . . . . . . . . . . . . . . . . . Follow-up Attacks . | . . . . . . . . . . . . . . . . . . . . . . . . . . . . . . . . . . . . Damage Inflicted 73457 | 125 434 1018 2466 248 . 976 3270 903 996 618 . 833 2585 1241 620 . 5989 207 1599 2754 1399 831 1304 930 1764 3214 1190 1066 2481 3858 1934 748 3653 6310 15893 Guns 11647 | 125 434 1018 1504 248 . 976 2589 444 78 143 . 452 314 501 206 . 993 . . . . . . . . . . . . 1622 . . . . . Cannons 49122 | . . . 962 . . . 681 459 918 475 . 381 474 740 414 . 1337 207 1574 2754 1399 831 1031 930 1764 3214 1190 1066 2481 2009 1045 748 3458 5093 11487 Explosions 12306 | . . . . . . . . . . . . . 1797 . . . 3499 . . . . . 271 . . . . . . 227 889 . . 1217 4406 Melee 195 | . . . . . . . . . . . . . . . . . . . . . . . . . . . . . . . . . 195 . . Ramming 27 | . . . . . . . . . . . . . . . . . . . 25 . . . 2 . . . . . . . . . . . . Kinetic 12032 | 62 311 1018 1006 143 . 976 2626 444 78 143 . 452 314 501 206 . 267 . . . . . . . . . . . . . . . . 310 3175 Thermal 50383 | 63 123 . 1460 105 . . 644 459 918 475 . 381 474 740 414 . 698 207 1574 2754 1399 831 1031 930 1764 3214 1190 1066 2481 2236 1045 748 3458 4783 12718 Explosive 7402 | . . . . . . . . . . . . . 1797 . . . 3499 . . . . . . . . . . . . . 889 . . 1217 . Electromagnetic 910 | . . . . . . . . . . . . . . . . . 639 . . . . . 271 . . . . . . . . . . . . Impact . | . . . . . . . . . . . . . . . . . . . . . . . . . . . . . . . . . . . . Slashing 355 | . . . . . . . . . . . . . . . . . 160 . . . . . . . . . . . . . . . 195 . . Piercing . | . . . . . . . . . . . . . . . . . . . . . . . . . . . . . . . . . . . . Entropic 1622 | . . . . . . . . . . . . . . . . . . . . . . . . . . . . . . 1622 . . . . . Phasic 726 | . . . . . . . . . . . . . . . . . 726 . . . . . . . . . . . . . . . . . . Highest Corruption 18 | . . . 4 4 4 4 . . . . . . 2 2 . . . . 1 1 1 10 12 . . . . 1 . 1 . . 8 6 18 Average Corruption 4 | . . . 3 4 4 4 . . . . . . 1 1 . . . . 1 1 1 4 2 . . . . 1 . 1 . . 7 2 11 Corruption Purged 40 | . . . . . . . . . . . . . . 2 . . . . . . . 11 . . . . . 1 . 2 . . . 6 18 Corruption Blocked . | . . . . . . . . . . . . . . . . . . . . . . . . . . . . . . . . . . . . Effects 237 | . . . 37 30 5 20 . . . . . . 2 1 . . . . 5 13 3 5 2 . . . . 1 . 3 . . 35 7 68 Message Errors 68 | . . . 12 9 3 5 . . . . . . 1 1 . . . . . 4 1 1 1 . . . . . . . . . 11 3 16 Matter Fused 53 | . . . 9 4 1 4 . . . . . . 1 . . . . . 1 2 . 4 1 . . . . . . 1 . . 6 . 19 Heat Flow Errors 26 | . . . 5 3 . 2 . . . . . . . . . . . . 1 3 . . . . . . . 1 . . . . 2 . 9 Energy Discharges 24 | . . . 2 5 . 2 . . . . . . . . . . . . . 1 . . . . . . . . . . . . 6 1 7 Parts Rejected 2 | . . . . 1 . . . . . . . . . . . . . . . . . . . . . . . . . . . . 1 . . Data Loss (minor) 27 | . . . 3 4 . 1 . . . . . . . . . . . . 2 3 1 . . . . . . . . 1 . . 5 . 7 Data Loss (major) 12 | . . . 1 3 1 2 . . . . . . . . . . . . . . . . . . . . . . . . . . 1 1 3 Misfires 14 | . . . 3 1 . 3 . . . . . . . . . . . . 1 . . . . . . . . . . 1 . . 2 1 2 Alerts 4 | . . . 2 . . . . . . . . . . . . . . . . . . . . . . . . . . . . . 1 . 1 Weapon Failures 7 | . . . . . . 1 . . . . . . . . . . . . . . 1 . . . . . . . . . . . . 1 4 Overload Shots . | . . . . . . . . . . . . . . . . . . . . . . . . . . . . . . . . . . . . Overflow Damage 3222 | . . . . . . . . 6 124 83 . 1 14 15 10 . 275 . 34 31 33 28 169 44 52 124 . 47 53 33 67 15 167 471 1326 Projectiles 2605 | . . . . . . . . 6 124 83 . 1 9 15 10 . 110 . 34 31 33 28 151 44 52 124 . 47 53 33 28 15 167 430 977 Explosions 617 | . . . . . . . . . . . . . 5 . . . 165 . . . . . 18 . . . . . . . 39 . . 41 349 Melee . | . . . . . . . . . . . . . . . . . . . . . . . . . . . . . . . . . . . . Knockbacks 36 | . . . . . . . 20 . . . . . . . . . . . . . . . . . . . . . . . . . . 1 15 Impact . | . . . . . . . . . . . . . . . . . . . . . . . . . . . . . . . . . . . . Kinetic 35 | . . . . . . . 19 . . . . . . . . . . . . . . . . . . . . . . . . . . 1 15 Secondary 1 | . . . . . . . 1 . . . . . . . . . . . . . . . . . . . . . . . . . . . . Self-Inflicted Damage 144 | . . . . . . . . . . . . . . . . . . . . . . . 144 . . . . . . . . . . . . Shots 2 | . . . . . . . . . . . . . . . . . . . . . . . 2 . . . . . . . . . . . . Rammed . | . . . . . . . . . . . . . . . . . . . . . . . . . . . . . . . . . . . . Targets Rammed 2 | . . . . . . . . . . . . . . . . . . . 1 . . . 1 . . . . . . . . . . . . Kicked 2 | . . . . . . . . . . . . . . . . . . . 1 . . . 1 . . . . . . . . . . . . Crushed . | . . . . . . . . . . . . . . . . . . . . . . . . . . . . . . . . . . . . Highest Temperature 310 | 36 48 21 259 240 . 173 44 2 18 . . 70 30 17 26 . 310 . 173 267 4 24 64 . 34 21 235 113 . 32 144 147 170 56 139 Average Temperature 51 | 15 15 9 82 92 . 74 9 1 13 . . 25 9 8 12 . 96 . 84 96 3 12 21 . 9 11 105 66 . 11 75 70 76 30 68 Received Heat Transfer 4109 | . 66 450 576 30 . 180 774 108 45 . . 117 66 258 48 . 69 . 75 130 133 . 90 27 153 114 . . 25 51 32 8 74 82 328 Effects 3 | . . . 3 . . . . . . . . . . . . . . . . . . . . . . . . . . . . . . . . Interference 3 | . . . 3 . . . . . . . . . . . . . . . . . . . . . . . . . . . . . . . . Siege Activations 40 | . . . . . . . . . . . . . . . . . . . . . . . . . 3 6 1 . 2 3 2 3 7 5 8 Total Turns 1149 | . . . . . . . . . . . . . . . . . . . . . . . . . 56 385 104 . 34 22 49 19 100 153 227 Longest Duration 166 | . . . . . . . . . . . . . . . . . . . . . . . . . 27 166 104 . 17 8 30 14 24 47 62 Robots Corrupted 6 | . . . . . . . . . . . . . . . . . 5 . . . . . 1 . . . . . . . . . . . . Combat Hostiles 6 | . . . . . . . . . . . . . . . . . 5 . . . . . 1 . . . . . . . . . . . . Parts Fried . | . . . . . . . . . . . . . . . . . . . . . . . . . . . . . . . . . . . . Impact Corruptions . | . . . . . . . . . . . . . . . . . . . . . . . . . . . . . . . . . . . . Robots Melted 11 | . . . . . . . . . . . . . 1 2 . . . . . . . . . . . . . . . . . 1 . . 7 Combat Hostiles 11 | . . . . . . . . . . . . . 1 2 . . . . . . . . . . . . . . . . . 1 . . 7 Parts Melted 57 | 1 . . 10 . . . 4 2 . 1 . . 2 3 1 . 3 . 1 5 1 . 1 1 2 1 . . 1 1 . 3 2 3 8 Heat Transferred 33465 | 333 370 . 2960 222 . . 1406 629 1332 703 . 555 683 1150 650 . 711 125 825 1475 762 450 550 475 975 1825 661 525 1337 1150 612 425 1900 2375 5314 Parts Sabotaged 1 | . . . . . . . . . . . . . . . . . . . . . . . . . . . . . . . . . . . 1 Parts Stolen . | . . . . . . . . . . . . . . . . . . . . . . . . . . . . . . . . . . . . Parts Stripped . | . . . . . . . . . . . . . . . . . . . . . . . . . . . . . . . . . . . . Power Chain Reactions . | . . . . . . . . . . . . . . . . . . . . . . . . . . . . . . . . . . . . Missiles Intercepted 6 | . . . . . . . . . . . . . . . . . . . . . . . . . . . . . . . . . . . 6 Alert | -11 -10 -10 -9 -9 -9 -8 -8 -7 -7 -7 -7 -6 -6 -6 -6 -6 -6 -5 -5 -5 -5 -5 -5 -4 -4 -4 -4 -3 -3 -3 -2 -2 -2 -1 -1 ------- Run | Scr Mat Min Mat Min Exi Min Mat Fac Low Low Dat Pro Fac Low Low Zio Dee Pro Fac Ext Cet Arc Hub Fac Upp Upp War Pro Res Tes Res Qua Sec Acc Com Peak Influence 1054 | 15 197 190 626 392 . 165 269 201 . . . . 577 . . . . . 216 461 628 454 807 333 . . . . 487 548 614 471 465 1039 1054 Initial 664 | . 9 . 5 242 . . 40 93 . . . . 31 . . . . . . 105 132 251 44 321 . . . . 3 273 253 345 134 251 664 Average 259 | 6 41 75 430 172 . 76 171 77 . . . . 196 . . . . . 98 248 429 325 325 163 . . . . 233 407 372 346 292 457 881 Maximum Alert Level 5 | . . . 2 1 . . 1 1 . . . . 2 . . . . . 1 2 2 2 3 1 . . . . 2 2 2 2 2 3 5 Low Security (%) 46 | 100 100 100 12 71 . 100 66 99 . . . . 56 . . . . . 82 31 13 8 5 68 . . . . 57 . . . 20 . . Level 1 29 | . . . 13 28 . . 33 . . . . . 26 . . . . . 17 63 30 52 79 31 . . . . 7 44 69 79 70 41 . Level 2 17 | . . . 74 . . . . . . . . . 16 . . . . . . 5 56 39 13 . . . . . 35 55 30 20 9 48 2 Level 3 4 | . . . . . . . . . . . . . . . . . . . . . . . 2 . . . . . . . . . . 9 64 Level 4 1 | . . . . . . . . . . . . . . . . . . . . . . . . . . . . . . . . . . . 28 Level 5 . | . . . . . . . . . . . . . . . . . . . . . . . . . . . . . . . . . . . 3 High Security . | . . . . . . . . . . . . . . . . . . . . . . . . . . . . . . . . . . . . Max Security . | . . . . . . . . . . . . . . . . . . . . . . . . . . . . . . . . . . . . Squads Dispatched 57 | . . 1 5 . . . 7 2 . . . . 6 . . . . . 3 . . . 3 3 . . . . 4 5 . 2 6 5 5 Investigation 11 | . . 1 3 . . . 4 . . . . . 1 . . . . . . . . . . 1 . . . . . . . 1 . . . Extermination 19 | . . . . . . . . . . . . . 2 . . . . . 2 . . . . 2 . . . . 1 3 . . 3 2 4 Reinforcement 18 | . . . 1 . . . 2 1 . . . . 2 . . . . . 1 . . . 3 . . . . . 2 2 . 1 3 . . Assault 4 | . . . 1 . . . . . . . . . 1 . . . . . . . . . . . . . . . 1 . . . . . 1 Garrison 5 | . . . . . . . 1 1 . . . . . . . . . . . . . . . . . . . . . . . . . 3 . Intercept . | . . . . . . . . . . . . . . . . . . . . . . . . . . . . . . . . . . . . Searches Triggered . | . . . . . . . . . . . . . . . . . . . . . . . . . . . . . . . . . . . . Data Miner Redirects 2 | . . . . . . . . . . . . . 1 . . . . . . . . . . . . . . . 1 . . . . . . Construction Impeded . | . . . . . . . . . . . . . . . . . . . . . . . . . . . . . . . . . . . . Haulers Reinforced 3 | . . . . . . . . . . . . . 1 . . . . . . . . . 1 . . . . . . . . . 1 . . Active Scanning Responses . | . . . . . . . . . . . . . . . . . . . . . . . . . . . . . . . . . . . . Cargo Convoy Interrupts 1 | . . . . . . . . . . . . . 1 . . . . . . . . . . . . . . . . . . . . . . Stealth | -11 -10 -10 -9 -9 -9 -8 -8 -7 -7 -7 -7 -6 -6 -6 -6 -6 -6 -5 -5 -5 -5 -5 -5 -4 -4 -4 -4 -3 -3 -3 -2 -2 -2 -1 -1 --------- Run | Scr Mat Min Mat Min Exi Min Mat Fac Low Low Dat Pro Fac Low Low Zio Dee Pro Fac Ext Cet Arc Hub Fac Upp Upp War Pro Res Tes Res Qua Sec Acc Com Distress Signals 43 | . 1 . 3 2 . . 3 . . . . . 1 . . . . . 1 . 1 . . . . . . . 2 . 8 . . 1 20 Communications Jammed 84 | . . . . . . . . . . . . . 44 . . . . . 3 . . . . . . . . . . 7 . . 12 4 14 Distress Signals 77 | . . . . . . . . . . . . . 41 . . . . . 3 . . . . . . . . . . 7 . . 10 2 14 Times Spotted 593 | . 17 20 44 11 . 14 50 10 3 1 . 11 34 10 10 . 55 . 17 25 17 6 12 5 9 15 29 5 12 26 19 8 22 37 39 Peak Tracking Total 37 | . 4 5 4 3 . 4 4 4 2 1 . 5 7 4 4 . 37 . 3 3 5 1 4 2 4 5 13 2 5 3 7 4 4 7 5 Tactical Retreats 15 | . 1 1 . 1 . 1 . . . . . . 1 . . . 2 . . . . . . . . . . . 1 . 2 1 2 1 1 Traps | -11 -10 -10 -9 -9 -9 -8 -8 -7 -7 -7 -7 -6 -6 -6 -6 -6 -6 -5 -5 -5 -5 -5 -5 -4 -4 -4 -4 -3 -3 -3 -2 -2 -2 -1 -1 ------- Run | Scr Mat Min Mat Min Exi Min Mat Fac Low Low Dat Pro Fac Low Low Zio Dee Pro Fac Ext Cet Arc Hub Fac Upp Upp War Pro Res Tes Res Qua Sec Acc Com Traps Triggered 11 | . . . 1 . . . 1 . . . . . . . . . . . 1 2 . . 1 1 . . 1 . . 1 . . 2 . . Indirectly . | . . . . . . . . . . . . . . . . . . . . . . . . . . . . . . . . . . . . Trap Hack Attempts . | . . . . . . . . . . . . . . . . . . . . . . . . . . . . . . . . . . . . Triggered . | . . . . . . . . . . . . . . . . . . . . . . . . . . . . . . . . . . . . Disarmed . | . . . . . . . . . . . . . . . . . . . . . . . . . . . . . . . . . . . . Reprogrammed . | . . . . . . . . . . . . . . . . . . . . . . . . . . . . . . . . . . . . Reused 3 | . . . . . . . . . . . . . . . . . . . . . . . . . . . 3 . . . . . . . . Traps Extracted . | . . . . . . . . . . . . . . . . . . . . . . . . . . . . . . . . . . . . Installed 8 | . . . . . . . . . . . . . . . . . . . . . . . . . . . 8 . . . . . . . . Triggered 12 | . . 2 . . . . . . . 3 . . . . . . . . . . . . . . . . 7 . . . . . . . . Most Traps Carried 9 | . . . . . . . . . . . . . . . . . . . . . . . . . . 9 8 . . . . . . . . Machines | -11 -10 -10 -9 -9 -9 -8 -8 -7 -7 -7 -7 -6 -6 -6 -6 -6 -6 -5 -5 -5 -5 -5 -5 -4 -4 -4 -4 -3 -3 -3 -2 -2 -2 -1 -1 ---------- Run | Scr Mat Min Mat Min Exi Min Mat Fac Low Low Dat Pro Fac Low Low Zio Dee Pro Fac Ext Cet Arc Hub Fac Upp Upp War Pro Res Tes Res Qua Sec Acc Com Machines Disabled 48 | . . . 1 . . . . . . . . . 3 . . . 4 . . 2 1 2 5 1 . 2 . . 2 8 . 4 8 1 4 Max in Single Turn 3 | . . . 1 . . . . . . . . . 2 . . . 1 . . 1 1 1 3 1 . 1 . . 1 1 . 1 1 1 2 Garrison Access 4 | . . . . . . . 1 1 . . . . . . . . . . . . . . . 1 . . . . 1 . . . . . . Network Hub 2 | . . . . . . . . . . . . . . . . . . . . . . . 2 . . . . . . . . . . . . Machines Sabotaged . | . . . . . . . . . . . . . . . . . . . . . . . . . . . . . . . . . . . . Garrisons Compromised . | . . . . . . . . . . . . . . . . . . . . . . . . . . . . . . . . . . . . Overloaded Fab Kills . | . . . . . . . . . . . . . . . . . . . . . . . . . . . . . . . . . . . . Hacking | -11 -10 -10 -9 -9 -9 -8 -8 -7 -7 -7 -7 -6 -6 -6 -6 -6 -6 -5 -5 -5 -5 -5 -5 -4 -4 -4 -4 -3 -3 -3 -2 -2 -2 -1 -1 --------- Run | Scr Mat Min Mat Min Exi Min Mat Fac Low Low Dat Pro Fac Low Low Zio Dee Pro Fac Ext Cet Arc Hub Fac Upp Upp War Pro Res Tes Res Qua Sec Acc Com Machines Accessed 124 | . 11 1 16 1 1 1 16 5 2 1 3 . 7 1 1 . . . 6 8 1 . 5 7 1 1 4 . . 8 2 1 8 4 1 Terminals 77 | . 8 . 11 . . 1 10 2 . . . . 5 . . . . . 4 7 1 . 5 4 . . . . . 6 2 1 6 3 1 Fabricators 3 | . . . . . . . . 1 . . . . 1 . . . . . . . . . . . . . . . . . . . . 1 . Repair Stations 5 | . 1 . 1 . . . 2 1 . . . . . . . . . . . . . . . . . . . . . . . . . . . Recycling Units 10 | . 2 . 2 . . . 2 . . . . . . . . . . . 2 1 . . . 1 . . . . . . . . . . . Scanalyzers 7 | . . . 2 . . . 1 . . . . . . . . . . . . . . . . 1 . . . . . 2 . . 1 . . Garrison Access 5 | . . . . . . . 1 1 . . . . 1 . . . . . . . . . . 1 . . . . . . . . 1 . . Total Hacks 415 | . 42 1 44 1 1 2 56 12 2 1 25 . 18 1 1 . . . 19 18 1 . 9 32 1 5 14 . . 37 9 7 34 21 1 Successful 223 | . 25 1 23 1 1 2 30 9 2 1 25 . 5 1 1 . . . 5 13 . . 4 10 1 5 14 . . 16 5 2 13 7 1 Failed 189 | . 16 . 20 . . . 25 3 . . . . 13 . . . . . 14 5 1 . 5 22 . . . . . 21 4 5 21 14 . Catastrophic 23 | . 2 . 1 . . . 1 . . . . . 2 . . . . . 2 2 . . 1 4 . . . . . 1 1 2 3 1 . Database Lockouts 3 | . 1 . 1 . . . 1 . . . . . . . . . . . . . . . . . . . . . . . . . . . . Manual 135 | . 18 . 22 . . 2 26 5 . . . . 9 . . 1 . . 14 6 1 . 1 11 . . 1 . . 5 3 5 1 4 . Terminals 273 | . 31 . 32 . . 2 40 7 . . . . 16 . . . . . 12 16 1 . 9 22 . . . . . 23 9 7 27 18 1 Fabricators 6 | . . . . . . . . 2 . . . . 1 . . . . . . . . . . . . . . . . . . . . 3 . Repair Stations 16 | . 3 . 3 . . . 8 2 . . . . . . . . . . . . . . . . . . . . . . . . . . . Recycling Units 26 | . 8 . 4 . . . 3 . . . . . . . . . . . 7 2 . . . 2 . . . . . . . . . . . Scanalyzers 29 | . . . 5 . . . 3 . . . . . . . . . . . . . . . . 3 . . . . . 14 . . 4 . . Garrison Access 12 | . . . . . . . 2 1 . . . . 1 . . . . . . . . . . 5 . . . . . . . . 3 . . Terminal Hacks 155 | . 15 1 12 1 1 2 14 2 2 1 25 . 3 1 1 . . . 1 9 . . 4 8 1 5 14 . . 10 5 2 11 3 1 Record 15 | . . . . . 1 . . . . . 6 . . . . . . . . . . . . 1 . 5 . . . 2 . . . . . Part Schematic 15 | . 1 . . . . . . 1 . . 11 . . . . . . . . 1 . . . . . . . . . . 1 . . . . Robot Schematic 5 | . . . . . . . . . . . 5 . . . . . . . . . . . . . . . . . . . . . . . . Robot Analysis 12 | . . . 5 . . 2 4 . . . . . . . . . . . . . . . . . . . . . . 1 . . . . . Prototype ID Bank 27 | . . . 2 . . . 2 . . . 3 . . . . . . . . 3 . . . . . . 13 . . . 1 . 2 1 . Open Door 12 | . . 1 . 1 . . . . 2 1 . . . 1 1 . . . . . . . . . 1 . 1 . . 1 . . 1 . 1 Level Access Points 3 | . 1 . . . . . . . . . . . . . . . . . . . . . . . . . . . . . . . 1 1 . Branch Access Points 6 | . 1 . 1 . . . . 1 . . . . 1 . . . . . . . . . . 1 . . . . . . 1 . . . . Emergency Access Points 2 | . 1 . 1 . . . . . . . . . . . . . . . . . . . . . . . . . . . . . . . . Machine Index 1 | . . . . . . . . . . . . . . . . . . . . . . . . . . . . . . 1 . . . . . Terminal Index 5 | . 1 . . . . . 1 . . . . . . . . . . . . . . . 1 . . . . . . . . . 1 1 . Repair Station Index 1 | . . . . . . . . . . . . . . . . . . . . . . . . 1 . . . . . . . . . . . Scanalyzer Index 1 | . . . . . . . . . . . . . . . . . . . . . . . . . . . . . . . . . 1 . . Alert Level 4 | . . . . . . . 1 . . . . . . . . . . . . 1 . . . . . . . . . 1 . . 1 . . Unreport Threat 6 | . . . . . . . 1 . . . . . . . . . . . . 1 . . . 1 . . . . . 1 . 1 1 . . Locate Traps 10 | . 3 . 1 . . . 1 . . . . . . . . . . . 1 1 . . 1 . . . . . . 1 . . 1 . . Security Status 1 | . 1 . . . . . . . . . . . . . . . . . . . . . . . . . . . . . . . . . . Surveillance Status 1 | . 1 . . . . . . . . . . . . . . . . . . . . . . . . . . . . . . . . . . Recall Extermination 1 | . . . . . . . . . . . . . . . . . . . . . . . . 1 . . . . . . . . . . . Hauler Manifests 5 | . 1 . . . . . 1 . . . . . 1 . . . . . . . . . . 1 . . . . . . . 1 . . . Registered Components 5 | . 1 . . . . . 1 . . . . . 1 . . . . . . . . . . 1 . . . . . . 1 . . . . Zone Layout 17 | . 3 . 2 . . . 2 . . . . . . . . . . . . 2 . . 2 1 . . . . . 2 1 . 2 . . Fabricator Hacks 5 | . . . . . . . . 2 . . . . 1 . . . . . . . . . . . . . . . . . . . . 2 . Network Status 3 | . . . . . . . . 1 . . . . 1 . . . . . . . . . . . . . . . . . . . . 1 . Build 2 | . . . . . . . . 1 . . . . . . . . . . . . . . . . . . . . . . . . . 1 . Repair Station Hacks 16 | . 3 . 3 . . . 8 2 . . . . . . . . . . . . . . . . . . . . . . . . . . . Scan Component 9 | . 2 . 2 . . . 4 1 . . . . . . . . . . . . . . . . . . . . . . . . . . . Repair 7 | . 1 . 1 . . . 4 1 . . . . . . . . . . . . . . . . . . . . . . . . . . . Recycling Unit Hacks 3 | . 1 . . . . . 1 . . . . . . . . . . . 1 . . . . . . . . . . . . . . . . Retrieve Components 3 | . 1 . . . . . 1 . . . . . . . . . . . 1 . . . . . . . . . . . . . . . . Scanalyzer 11 | . . . 2 . . . 1 . . . . . . . . . . . . . . . . 1 . . . . . 5 . . 2 . . Insert Component 9 | . . . 2 . . . 1 . . . . . . . . . . . . . . . . 1 . . . . . 3 . . 2 . . Analyze 2 | . . . . . . . . . . . . . . . . . . . . . . . . . . . . . . 2 . . . . . Garrison Access Hacks 3 | . . . . . . . 1 1 . . . . . . . . . . . . . . . 1 . . . . . . . . . . . Seal Access 3 | . . . . . . . 1 1 . . . . . . . . . . . . . . . 1 . . . . . . . . . . . Unauthorized Hacks 30 | . 6 . 6 . . . 5 2 . . . . 1 . . . . . 3 4 . . . . . . . . . 1 . . . 2 . Terminals 18 | . 3 . 3 . . . 3 2 . . . . 1 . . . . . 1 3 . . . . . . . . . . . . . 2 . Assimilate 1 | . . . . . . . 1 . . . . . . . . . . . . . . . . . . . . . . . . . . . . Botnet 12 | . 2 . 3 . . . 2 1 . . . . 1 . . . . . . 2 . . . . . . . . . . . . . 1 . Disrupt 1 | . . . . . . . . . . . . . . . . . . . 1 . . . . . . . . . . . . . . . . Operators 4 | . 1 . . . . . . 1 . . . . . . . . . . . 1 . . . . . . . . . . . . . 1 . Fabricators . | . . . . . . . . . . . . . . . . . . . . . . . . . . . . . . . . . . . . Repair Stations . | . . . . . . . . . . . . . . . . . . . . . . . . . . . . . . . . . . . . Recycling Units 11 | . 3 . 3 . . . 2 . . . . . . . . . . . 2 1 . . . . . . . . . . . . . . . Reject 1 | . 1 . . . . . . . . . . . . . . . . . . . . . . . . . . . . . . . . . . Recyclers 1 | . 1 . . . . . . . . . . . . . . . . . . . . . . . . . . . . . . . . . . Mask 5 | . 1 . 1 . . . . . . . . . . . . . . . 2 1 . . . . . . . . . . . . . . . Tunnel 4 | . . . 2 . . . 2 . . . . . . . . . . . . . . . . . . . . . . . . . . . . Scanalyzers 1 | . . . . . . . . . . . . . . . . . . . . . . . . . . . . . . 1 . . . . . Researchers 1 | . . . . . . . . . . . . . . . . . . . . . . . . . . . . . . 1 . . . . . Garrison Access . | . . . . . . . . . . . . . . . . . . . . . . . . . . . . . . . . . . . . Data Cores Recovered 2 | . . . 1 . . . . . . . . . . . . . . . . 1 . . . . . . . . . . . . . . . Used 1 | . . . . . . . . . . . . . . . . . . . . 1 . . . . . . . . . . . . . . . Hacking Detections 91 | . 9 . 12 . . 1 13 2 . . . . 6 . . . . . 6 8 2 . 5 6 . . . . . 7 2 1 7 4 . Full Trace Events 5 | . . . 1 . . . 1 . . . . . 1 . . . . . . . . . . 1 . . . . . . . 1 . . . Feedback Events . | . . . . . . . . . . . . . . . . . . . . . . . . . . . . . . . . . . . . Feedback Blocked . | . . . . . . . . . . . . . . . . . . . . . . . . . . . . . . . . . . . . Robot Schematics Acquired 9 | . . . . . . . . . . . 5 . . . . 4 . . . . . . . . . . . . . . . . . . . Robots Built . | . . . . . . . . . . . . . . . . . . . . . . . . . . . . . . . . . . . . Authchips . | . . . . . . . . . . . . . . . . . . . . . . . . . . . . . . . . . . . . Time . | . . . . . . . . . . . . . . . . . . . . . . . . . . . . . . . . . . . . Total Robot Build Rating . | . . . . . . . . . . . . . . . . . . . . . . . . . . . . . . . . . . . . Part Schematics Acquired 35 | . 1 . . . . . . 1 . . 11 . . . . 15 . . . 1 . . . . . . . . . 1 1 . 4 . . Parts Built 3 | . . . . . . . . 2 . . . . . . . . . . . . . . . . . . . . . . . . . 1 . Authchips . | . . . . . . . . . . . . . . . . . . . . . . . . . . . . . . . . . . . . Time 180 | . . . . . . . . 106 . . . . . . . . . . . . . . . . . . . . . . . . . 74 . Total Part Build Rating 21 | . . . . . . . . 12 . . . . . . . . . . . . . . . . . . . . . . . . . 9 . Parts Repaired 7 | . 1 . 1 . . . 4 1 . . . . . . . . . . . . . . . . . . . . . . . . . . . Time 364 | . 26 . 136 . . . 164 38 . . . . . . . . . . . . . . . . . . . . . . . . . . . Parts Recycled . | . . . . . . . . . . . . . . . . . . . . . . . . . . . . . . . . . . . . Recycled Matter . | . . . . . . . . . . . . . . . . . . . . . . . . . . . . . . . . . . . . Retrieved Matter . | . . . . . . . . . . . . . . . . . . . . . . . . . . . . . . . . . . . . Retrieved Components 13 | . 3 . . . . . 10 . . . . . . . . . . . . . . . . . . . . . . . . . . . . Parts Scanalyzed 3 | . . . 1 . . . . . . . . . . . . . . . . . . . . . . . . . . 2 . . . . . Part Schematics Acquired 1 | . . . . . . . . . . . . . . . . . . . . . . . . . . . . . . 1 . . . . . Parts Damaged . | . . . . . . . . . . . . . . . . . . . . . . . . . . . . . . . . . . . . Bothacking | -11 -10 -10 -9 -9 -9 -8 -8 -7 -7 -7 -7 -6 -6 -6 -6 -6 -6 -5 -5 -5 -5 -5 -5 -4 -4 -4 -4 -3 -3 -3 -2 -2 -2 -1 -1 ------------ Run | Scr Mat Min Mat Min Exi Min Mat Fac Low Low Dat Pro Fac Low Low Zio Dee Pro Fac Ext Cet Arc Hub Fac Upp Upp War Pro Res Tes Res Qua Sec Acc Com Used RIF Installer . | . . . . . . . . . . . . . . . . . . . . . . . . . . . . . . . . . . . . Robots Hacked . | . . . . . . . . . . . . . . . . . . . . . . . . . . . . . . . . . . . . Non-combat . | . . . . . . . . . . . . . . . . . . . . . . . . . . . . . . . . . . . . Combat . | . . . . . . . . . . . . . . . . . . . . . . . . . . . . . . . . . . . . Robot Hacks Applied . | . . . . . . . . . . . . . . . . . . . . . . . . . . . . . . . . . . . . Relay Couplers Released 6 | . . . . . . . . . . . . . . . . . . . . . . . . . . . . . 2 . . . . 4 . Machine Destruction 2 | . . . . . . . . . . . . . . . . . . . . . . . . . . . . . 2 . . . . . . Programmers 4 | . . . . . . . . . . . . . . . . . . . . . . . . . . . . . . . . . . 4 . Fabnet Peak Effective % . | . . . . . . . . . . . . . . . . . . . . . . . . . . . . . . . . . . . . Robots Rewired 28 | . . . . . . . . . . . . . . . . . . . . 23 . . . . . . 5 . . . . . . . . Allies Hacked . | . . . . . . . . . . . . . . . . . . . . . . . . . . . . . . . . . . . . Hacks Repelled . | . . . . . . . . . . . . . . . . . . . . . . . . . . . . . . . . . . . . Allies | -11 -10 -10 -9 -9 -9 -8 -8 -7 -7 -7 -7 -6 -6 -6 -6 -6 -6 -5 -5 -5 -5 -5 -5 -4 -4 -4 -4 -3 -3 -3 -2 -2 -2 -1 -1 -------- Run | Scr Mat Min Mat Min Exi Min Mat Fac Low Low Dat Pro Fac Low Low Zio Dee Pro Fac Ext Cet Arc Hub Fac Upp Upp War Pro Res Tes Res Qua Sec Acc Com Total Allies 57 | . . 2 . 3 . . 1 . . 1 . 1 . . . 7 . . . 32 5 . . . . . 5 . . . . . . . . Largest Group 14 | . . 2 2 3 1 1 1 1 . 1 1 2 1 . . 7 7 . . 14 12 4 4 . . . 5 4 3 . . . . . . Highest-Rated Group 508 | . . 46 46 40 16 16 10 10 . 99 99 195 99 . . 319 319 . . 498 508 249 220 . . . 291 240 184 . . . . . . Highest-Rated Ally 159 | . . 31 31 16 16 16 10 10 . 99 99 99 99 . . 96 96 . . 159 159 96 96 . . . 65 65 65 . . . . . . Total Orders 23 | . . . . . . . . . . . . . . . . . . . . . . . . . . . 2 . . . . . . 10 11 STAY 1 | . . . . . . . . . . . . . . . . . . . . . . . . . . . 1 . . . . . . . . FOLLOW 1 | . . . . . . . . . . . . . . . . . . . . . . . . . . . 1 . . . . . . . . EXPLORE 11 | . . . . . . . . . . . . . . . . . . . . . . . . . . . . . . . . . . 6 5 RETURN 10 | . . . . . . . . . . . . . . . . . . . . . . . . . . . . . . . . . . 4 6 Ally Attacks 574 | . . . 46 18 . 16 . . . . . 28 23 . . . 132 . . 159 88 7 20 . . . 14 16 7 . . . . . . Total Damage 15387 | . . . 672 119 . 178 . . . . . 2067 1726 . . . 1891 . . 3322 2205 237 1333 . . . 1010 463 164 . . . . . . Kills 112 | . . . 11 3 . 3 . . . . . 12 15 . . . 13 . . 25 13 1 9 . . . 6 1 . . . . . . . Allies Corrupted 1 | . . . . . . . . . . . . . 1 . . . . . . . . . . . . . . . . . . . . . . Allies Melted . | . . . . . . . . . . . . . . . . . . . . . . . . . . . . . . . . . . . . Intel | -11 -10 -10 -9 -9 -9 -8 -8 -7 -7 -7 -7 -6 -6 -6 -6 -6 -6 -5 -5 -5 -5 -5 -5 -4 -4 -4 -4 -3 -3 -3 -2 -2 -2 -1 -1 ------- Run | Scr Mat Min Mat Min Exi Min Mat Fac Low Low Dat Pro Fac Low Low Zio Dee Pro Fac Ext Cet Arc Hub Fac Upp Upp War Pro Res Tes Res Qua Sec Acc Com Robot Analysis Total 12 | . . . 5 . . 2 4 . . . . . . . . . . . . . . . . . . . . . . 1 . . . . . Derelict Logs Recovered 16 | . . 1 . 2 . . . . 2 . . 2 . 2 1 2 . 2 . . . . . . 2 . . . . . . . . . . Drone Launches 19 | . . . . . . . . . . . . . . . . . . . . . . . . . . . . . . . . . . 11 8 Drone Recoveries 16 | . . . . . . . . . . . . . . . . . . . . . . . . . . . . . . . . . . 8 8 Exploration | -11 -10 -10 -9 -9 -9 -8 -8 -7 -7 -7 -7 -6 -6 -6 -6 -6 -6 -5 -5 -5 -5 -5 -5 -4 -4 -4 -4 -3 -3 -3 -2 -2 -2 -1 -1 ------------- Run | Scr Mat Min Mat Min Exi Min Mat Fac Low Low Dat Pro Fac Low Low Zio Dee Pro Fac Ext Cet Arc Hub Fac Upp Upp War Pro Res Tes Res Qua Sec Acc Com Turns Passed 66536 | 91 2153 1615 2275 1406 285 1079 4077 782 5419 4305 304 4062 1110 2229 2994 3153 3494 2412 1178 1684 360 872 802 1281 2691 3407 1218 1586 336 2063 545 523 1554 1183 2008 Spaces Moved 24127 | 45 736 548 902 609 145 466 1501 356 1543 1024 75 983 560 895 794 1227 1242 1106 417 683 144 213 373 465 1010 1254 610 928 135 869 262 282 639 456 630 Core 18 | 18 . . . . . . . . . . . . . . . . . . . . . . . . . . . . . . . . . . . Treads 10467 | 27 736 88 45 . . . 17 1 1543 1024 75 948 . . 606 . 4 . . . . . . . 574 46 610 928 135 869 262 282 561 456 630 Legs 5448 | . . . . . . . . . . . . . . . . . 403 1106 417 683 144 213 373 465 436 1208 . . . . . . . . . Wheels 8116 | . . 460 857 609 145 466 1484 355 . . . 35 560 895 188 1227 835 . . . . . . . . . . . . . . . . . . Hover . | . . . . . . . . . . . . . . . . . . . . . . . . . . . . . . . . . . . . Flight . | . . . . . . . . . . . . . . . . . . . . . . . . . . . . . . . . . . . . Fastest Speed 50 | 50 160 135 135 195 195 195 150 135 330 330 410 165 165 165 255 240 105 210 210 183 183 183 183 183 210 160 160 160 160 160 156 156 156 156 150 Average Speed 231 | 119 261 164 193 209 195 197 210 150 336 403 410 401 165 225 369 251 231 210 210 187 183 228 183 196 228 208 160 160 160 160 157 156 156 156 202 Slowest Speed 650 | 160 320 320 320 210 210 210 320 330 410 410 410 650 165 255 405 255 570 210 210 210 183 300 183 210 240 320 160 240 160 166 166 156 156 156 239 Overloaded Moves . | . . . . . . . . . . . . . . . . . . . . . . . . . . . . . . . . . . . . Propulsion Burnouts . | . . . . . . . . . . . . . . . . . . . . . . . . . . . . . . . . . . . . Robots Hopped . | . . . . . . . . . . . . . . . . . . . . . . . . . . . . . . . . . . . . Cave-ins Triggered . | . . . . . . . . . . . . . . . . . . . . . . . . . . . . . . . . . . . . Teleports 2 | . . . . . . . . . . . . . . . . . . . . . . . . . . . . . . . . 1 1 . . Microwarps 6 | . . . . . . . . . . . . . . . . . . . . . . . . . . . . . . . . . 6 . . Exploration Rate (%) 67 | 4 99 99 96 98 53 98 89 13 97 93 68 96 20 95 97 83 93 98 18 87 75 86 35 15 98 98 84 99 5 90 14 44 41 22 34 Regions Visited 35 Branch Regions 25 Pre-discovered Areas 11 | . . . 2 1 1 . 2 . 1 . 1 . . 1 . 1 . . . . . . . . . 1 . . . . . . . . . Known Exits Taken 30 | . 1 1 1 . . . 1 1 1 1 1 1 1 1 1 . 1 1 1 1 1 1 1 1 1 1 1 1 1 1 1 1 1 1 . Unknown Exits Taken 5 | 1 . . . 1 1 1 . . . . . . . . . 1 . . . . . . . . . . . . . . . . . . . Scrap Searched 32 | . . 1 . 2 . 1 . . 3 5 . 4 . 2 1 3 . 3 . . . . . . 2 2 . 3 . . . . . . . Spaces Dug 221 | . . . . . . . 1 3 . . . . 7 4 . 3 4 23 10 . . 3 3 26 19 8 2 4 2 22 8 2 40 12 15 Terrain Destroyed 953 | . . . . . . . 1 5 . 1 . . 29 13 7 3 11 30 16 4 8 5 344 30 26 26 2 11 7 46 86 3 56 71 112 Melee 7 | . . . . . . . 1 3 . . . . . . . 3 . . . . . . . . . . . . . . . . . . . Projectile 408 | . . . . . . . . 2 . 1 . . 14 13 7 . 11 30 16 4 8 5 17 30 26 26 2 11 7 40 14 3 56 44 21 AOE 538 | . . . . . . . . . . . . . 15 . . . . . . . . . 327 . . . . . . 6 72 . . 27 91 Terrain Rammed . | . . . . . . . . . . . . . . . . . . . . . . . . . . . . . . . . . . . . Walls Destroyed . | . . . . . . . . . . . . . . . . . . . . . . . . . . . . . . . . . . . . Machines Disabled . | . . . . . . . . . . . . . . . . . . . . . . . . . . . . . . . . . . . . Actions | -11 -10 -10 -9 -9 -9 -8 -8 -7 -7 -7 -7 -6 -6 -6 -6 -6 -6 -5 -5 -5 -5 -5 -5 -4 -4 -4 -4 -3 -3 -3 -2 -2 -2 -1 -1 --------- Run | Scr Mat Min Mat Min Exi Min Mat Fac Low Low Dat Pro Fac Low Low Zio Dee Pro Fac Ext Cet Arc Hub Fac Upp Upp War Pro Res Tes Res Qua Sec Acc Com Total 32525 | 67 909 1155 1240 712 148 540 2183 549 1732 1178 74 1059 679 1051 832 1286 1780 1159 669 1028 204 584 451 785 1343 1967 819 993 192 1415 347 337 1086 766 1206 Wait 5397 | 1 78 531 167 81 . 24 424 121 122 102 . 19 48 95 16 4 309 33 206 62 7 319 43 267 251 594 108 27 9 389 26 17 364 166 367 Move 24019 | 44 735 547 901 608 144 465 1500 355 1542 1023 74 982 559 894 793 1226 1241 1105 416 682 143 212 372 464 1009 1253 609 927 134 868 261 281 566 455 629 Hop . | . . . . . . . . . . . . . . . . . . . . . . . . . . . . . . . . . . . . Pick Up 380 | 8 42 11 28 2 . 4 37 8 6 7 . 7 8 8 . 13 36 . 3 4 10 2 1 2 20 24 9 . 3 13 8 8 12 10 26 Fast Attach 140 | 3 2 . 1 1 . . 10 4 2 6 . 6 . 1 1 8 24 . 3 5 4 10 1 . 2 3 6 5 1 8 2 . 8 6 7 Attach 106 | 4 . 6 9 3 2 2 14 2 4 6 . . 2 1 . 1 4 . 1 1 4 2 . 1 . . 1 . . 4 3 2 8 5 14 Detach 35 | . . . . 1 . . . 1 . 2 . . . . . 1 4 . . 1 . 3 . . 2 4 2 . . 5 2 . 1 4 2 Swap 338 | . 5 1 9 . . 1 32 21 4 . . 12 26 15 6 7 14 1 6 13 2 3 9 10 8 18 5 9 7 20 7 9 22 23 13 Drop 438 | . 15 5 24 3 2 1 35 10 10 11 . 13 5 5 1 18 58 . 5 14 12 20 1 8 14 16 14 8 4 32 9 5 21 14 25 Fire 1404 | 7 32 54 101 13 . 43 130 24 42 21 . 20 31 32 15 1 90 20 28 36 22 13 23 33 37 55 21 17 34 76 29 15 83 83 123 Melee 12 | . . . . . . . 1 3 . . . . . . . 7 . . . . . . . . . . . . . . . . 1 . . Ram . | . . . . . . . . . . . . . . . . . . . . . . . . . . . . . . . . . . . . Kick 2 | . . . . . . . . . . . . . . . . . . . 1 . . . 1 . . . . . . . . . . . . Crush . | . . . . . . . . . . . . . . . . . . . . . . . . . . . . . . . . . . . . Escape Stasis 5 | . . . . . . . . . . . . . . . . . . . . 5 . . . . . . . . . . . . . . . Rewire 240 | . . . . . . . . . . . . . . . . . . . . 205 . . . . . . 35 . . . . . . . . Trap 9 | . . . . . . . . . . . . . . . . . . . . . . . . . . . 9 . . . . . . . . Miscellaneous . | . . . . . . . . . . . . . . . . . . . . . . . . . . . . . . . . . . . . Route ------- -11/Scrapyard -10/Materials (discovered 5 exits: *Mat x3 / *Min x2) -10/Mines (discovered 2 exits: *Mat x2) -9/Materials (discovered 5 exits: *Mat x3 / *Min x2) -9/Mines (discovered 3 exits: *Mat x2 / *Exi) -9/Exiles -8/Mines (discovered 2 exits: *Mat x2) -8/Materials (discovered 2 exits: *Fac x2) -7/Factory (discovered 4 exits: Sto x2 / *Low x2) -7/Lower Caves (discovered 2 exits: *Low / *Dat) -7/Lower Caves (discovered 2 exits: *Fac / *Dat) -7/Data Miner -6/Proximity Caves -6/Factory (discovered 4 exits: *Fac x2 / *Low x2) -6/Lower Caves -6/Lower Caves (discovered 2 exits: *Fac / *Zio) -6/Zion (discovered 2 exits: [*Dee] / [*Pro]) -6/Deep Caves -5/Proximity Caves -5/Factory (discovered 4 exits: Fac x2 / Upp / *Ext) -5/Extension (discovered 2 exits: *Fac / *Cet) -5/Cetus (discovered 2 exits: *Fac / *Arc) -5/Archives (discovered 3 exits: *Fac / *Hub x2) -5/Hub_04(d) (discovered 2 exits: *Fac x2) -4/Factory (discovered 3 exits: *Upp x2 / Arm) -4/Upper Caves -4/Upper Caves (discovered 2 exits: *Res / *War) -4/Warlord -3/Proximity Caves -3/Research -3/Testing -2/Research (discovered 2 exits: *Qua x2) -2/Quarantine (discovered 2 exits: *Acc / *Sec) -2/Section 7 -1/Access (discovered 2 exits: Sur / *Com) -1/Command (discovered 2 exits: *Sur x2) 0b11 Command History --------- Turn | Location | Event 21 | -11/Scrapyard | Discovered new exit (range 16) 92 | -11/Scrapyard | Entered Materials 182 | -10/Materials | Central database locked down 309 | -10/Materials | Build established: Mutant 449 | -10/Materials | Discovered new exit (range 16) 645 | -10/Materials | Discovered new exit (range 7) 864 | -10/Materials | Discovered new exit (range 6) 1080 | -10/Materials | Repaired Huge Storage Unit 1167 | -10/Materials | Discovered new exit (range 15) 1179 | -10/Materials | Identified exit to Mines 1323 | -10/Materials | Identified exit to Materials 2245 | -10/Materials | Entered Mines 2327 | -10/Mines | Excavation squad dispatched 2327 | -10/Mines | A large section of the Mines collapsed 2577 | -10/Mines | Excavation squad dispatched 2827 | -10/Mines | Excavation squad dispatched 2951 | -10/Mines | Learned Materials terminal intel 3077 | -10/Mines | Excavation squad dispatched 3129 | -10/Mines | Core integrity fell below 50% 3154 | -10/Mines | Core integrity fell below 20% 3192 | -10/Mines | Lost 4 parts (1p2n1w) 3232 | -10/Mines | Discovered exit to Materials (range 11) 3288 | -10/Mines | Discovered exit to Materials (range 9) 3314 | -10/Mines | Met a Derelict shopkeep closing up shop 3612 | -10/Mines | Found a damaged Exp. Sensor Array with a note attached 3616 | -10/Mines | Found Prototype Device 3860 | -10/Mines | Entered Materials 3860 | -9/Materials | Accompanied by 2 allies 3860 | -9/Materials | Evolved 2 slots: Utility x2 3861 | -9/Materials | Loaded intel: 12 terminal locations 3865 | -9/Materials | Led the pair of lost Derelicts to an unsafe place 3875 | -9/Materials | Identified Exp. Sensor Array 4494 | -9/Materials | Discovered new exit (range 14) 4562 | -9/Materials | Discovered new exit (range 14) 4660 | -9/Materials | First assault squad dispatched 5065 | -9/Materials | Discovered new exit (range 4) 5176 | -9/Materials | Discovered new exit (range 11) 5528 | -9/Materials | Identified exit to Mines 5539 | -9/Materials | Central database locked down 5619 | -9/Materials | Discovered new exit (range 4) 6085 | -9/Materials | Repaired Broken Exp. Sensor Array 6135 | -9/Materials | Entered Mines 6136 | -9/Mines | Assembled infested the area 6141 | -9/Mines | Assisted by a Guerilla fighting off Assembled 6423 | -9/Mines | Core integrity fell below 50% 6438 | -9/Mines | Discovered new exit (range 13) 6585 | -9/Mines | Learned Materials non-interactive machine intel 6626 | -9/Mines | Learned location of Storage (-7) 6728 | -9/Mines | Assisted by bots powering up and referring to "LRC-V3" 6957 | -9/Mines | Discovered new exit (range 10) 6970 | -9/Mines | Discovered new exit (range 14) 7396 | -9/Mines | Found the Drone Emporium 7410 | -9/Mines | Found Prototype Device 7410 | -9/Mines | Identified Decoy Drone Bay 7532 | -9/Mines | Deemed a non-threat by the Exiles lab entrance 7541 | -9/Mines | Entered Exiles 7541 | -9/Exiles | Accompanied by 1 ally 7590 | -9/Exiles | Met 8R-AWN 7623 | -9/Exiles | Met EX-HEX 7709 | -9/Exiles | Met EX-DEC 7742 | -9/Exiles | Learned location of Zion (-6) 7802 | -9/Exiles | Discovered new exit (range 14) 7826 | -9/Exiles | Entered Mines 7826 | -8/Mines | Accompanied by 1 ally 8120 | -8/Mines | Discovered new exit (range 4) 8565 | -8/Mines | Discovered new exit (range 5) 8905 | -8/Mines | Entered Materials 8905 | -8/Materials | Evolved 2 slots: Utility x2 8906 | -8/Materials | Loaded intel: 51 non-interactive machine locations 9030 | -8/Materials | Garrison activated, responded to threat 9089 | -8/Materials | Lost 3 parts (1n2w) 9496 | -8/Materials | Build established: Skirmisher 9951 | -8/Materials | Build established: Mutant 10751 | -8/Materials | Discovered new exit (range 16) 10787 | -8/Materials | Identified exit to Factory 10936 | -8/Materials | Core integrity fell below 50% 11761 | -8/Materials | Central database locked down 11900 | -8/Materials | Discovered exit to Factory (range 15) 12348 | -8/Materials | Repaired Adv. Heat Sink 12382 | -8/Materials | Repaired Arm. Wheel 12427 | -8/Materials | Repaired Imp. Medium Armor Plating 12888 | -8/Materials | Repaired Flak Cannon 12982 | -8/Materials | Entered Factory 12982 | -7/Factory | Accompanied by 1 ally 12982 | -7/Factory | Evolved 2 slots: Utility x2 12983 | -7/Factory | Identified exit to Storage 13205 | -7/Factory | Fabricated KE Penetrator (x2) 13322 | -7/Factory | Garrison activated, responded to threat 13586 | -7/Factory | Identified exit to Lower Caves 13694 | -7/Factory | Repaired Hvy. Particle Cannon 13764 | -7/Factory | Entered Lower Caves 13993 | -7/Lower Caves | Build established: Hacker-Skirmisher 14368 | -7/Lower Caves | A Derelict revealed a hidden shortcut to meet someone special 14413 | -7/Lower Caves | Identified exit to Data Miner 15644 | -7/Lower Caves | Build established: Hacker-Mutant 16403 | -7/Lower Caves | Found Prototype Device 16592 | -7/Lower Caves | Learned location of 1 exit from Factory 16724 | -7/Lower Caves | Discovered new exit (range 15) 16830 | -7/Lower Caves | Identified exit to Lower Caves 16878 | -7/Lower Caves | Identified Heart of Steel 17184 | -7/Lower Caves | Build established: Mutant 19183 | -7/Lower Caves | Entered another Lower Caves area 19214 | -7/Lower Caves | Discovered new exit (range 10) 19300 | -7/Lower Caves | Identified exit to Factory 19478 | -7/Lower Caves | Build established: Skirmisher 20555 | -7/Lower Caves | Build established: Mutant 21134 | -7/Lower Caves | Build established: Skirmisher 21582 | -7/Lower Caves | Build established: Mutant 22337 | -7/Lower Caves | Discovered exit to Data Miner (range 5) 22567 | -7/Lower Caves | Heart of Steel transformed into Warbot 23488 | -7/Lower Caves | Entered Data Miner 23488 | -7/Data Miner | Accompanied by 1 ally (Warbot) 23488 | -7/Data Miner | Discovered new exit (range 6) 23566 | -7/Data Miner | Met Data Miner 23636 | -7/Data Miner | Learned location of Section 7 (-2) 23636 | -7/Data Miner | Acquired the access code to Warlord's prototype stash 23698 | -7/Data Miner | Received God Mode back door access code from Data Miner 23785 | -7/Data Miner | Build established: Skirmisher 23788 | -7/Data Miner | Identified exit to Proximity Caves 23792 | -7/Data Miner | Entered Proximity Caves 23792 | -6/Proximity Caves | Accompanied by 1 ally (Warbot) 23975 | -6/Proximity Caves | Found Imp. Powered Armor 24382 | -6/Proximity Caves | Escorted by Enhanced Grunt 25763 | -6/Proximity Caves | Learned Factory stockpile data 27040 | -6/Proximity Caves | Spotted B-75 Beast 27057 | -6/Proximity Caves | Allies destroyed B-75 Beast 27558 | -6/Proximity Caves | Discovered exit to Factory (range 9) 27854 | -6/Proximity Caves | Entered Factory 27854 | -6/Factory | Accompanied by 1 ally (Warbot) 27854 | -6/Factory | Evolved 2 slots: Power x1, Utility x1 27855 | -6/Factory | Identified exit to Factory 28142 | -6/Factory | Discovered exit to Factory (range 16) 28479 | -6/Factory | Incoming investigation squad redirected 28553 | -6/Factory | Identified exit to Lower Caves 28773 | -6/Factory | Cargo convoy interrupted 28805 | -6/Factory | Destroyed 8 combat bots 28904 | -6/Factory | First assault squad dispatched 28913 | -6/Factory | Build established: Mutant 28964 | -6/Factory | Entered Lower Caves 29354 | -6/Lower Caves | Build established: Skirmisher 29477 | -6/Lower Caves | Encountered a Warlord checkpoint 30980 | -6/Lower Caves | Discovered new exit (range 17) 30985 | -6/Lower Caves | Learned Factory emergency access door positions 31138 | -6/Lower Caves | Identified exit to Lower Caves 31193 | -6/Lower Caves | Entered another Lower Caves area 31235 | -6/Lower Caves | Attracted the attention of an 0b10 checkpoint 31353 | -6/Lower Caves | Discovered exit to Factory (range 5) 31657 | -6/Lower Caves | Build established: Scavenger-Skirmisher 32172 | -6/Lower Caves | Encountered a Warlord checkpoint 34027 | -6/Lower Caves | Build established: Mutant 34075 | -6/Lower Caves | Discovered new exit (range 8) 34095 | -6/Lower Caves | Identified exit to Zion 34115 | -6/Lower Caves | Learned Factory stockpile data 34187 | -6/Lower Caves | Entered Zion 34213 | -6/Zion | Given A8's code to call for help 34341 | -6/Zion | Build established: Skirmisher 34391 | -6/Zion | Discovered new exit (range 12) 34479 | -6/Zion | Found Prototype Special Weapon 34482 | -6/Zion | Found Prototype Special Weapon 34483 | -6/Zion | Identified RU-N14's Throwing Claymores (x2) 34491 | -6/Zion | Found RU-N14's Throwing Claymores 34495 | -6/Zion | Found RU-N14's Throwing Claymores 34791 | -6/Zion | Learned 8 Factory zone layouts 35672 | -6/Zion | Learned Factory emergency access door positions 35784 | -6/Zion | Gained Derelict followers 35881 | -6/Zion | Learned location of Warlord (-4) 35991 | -6/Zion | Learned Factory terminal intel 36019 | -6/Zion | Received a visual enhancement algorithm 36460 | -6/Zion | Found Prototype Hackware 36461 | -6/Zion | Identified Exp. Hacking Suite 36465 | -6/Zion | Found Prototype Processor 36466 | -6/Zion | Identified Exp. Core Analyzer 36470 | -6/Zion | Found Prototype Processor 36470 | -6/Zion | Identified Exp. Target Analyzer 36475 | -6/Zion | Found Prototype Processor 36475 | -6/Zion | Identified Spectral Analyzer 36479 | -6/Zion | Found Prototype Processor 36479 | -6/Zion | Identified Exp. Armor Integrity Analyzer 36484 | -6/Zion | Found Prototype Processor 36484 | -6/Zion | Identified Exp. Targeting Computer 36491 | -6/Zion | Found Prototype Processor 36491 | -6/Zion | Identified Exp. Signal Interpreter 36735 | -6/Zion | Found Exp. Armor Integrity Analyzer 36756 | -6/Zion | Build established: Mutant 37279 | -6/Zion | Discovered new exit (range 4) 37307 | -6/Zion | Enhanced Grunt warped into view, answering call for help 37308 | -6/Zion | Enhanced Grunt warped into view, answering call for help 37325 | -6/Zion | Saw the warning signs outside the Deep Caves entrance 37340 | -6/Zion | Entered Deep Caves 37340 | -6/Deep Caves | Accompanied by 7 allies 37734 | -6/Deep Caves | Attacked by Z-Imprinter 37745 | -6/Deep Caves | Allies destroyed Z-Imprinter 37939 | -6/Deep Caves | Z-Facility disabled 38228 | -6/Deep Caves | Found Prototype Protection 38228 | -6/Deep Caves | Identified Zio. Weapon Casing 38303 | -6/Deep Caves | Found Prototype Protection 38303 | -6/Deep Caves | Identified Zio. Heavy Carapace 38313 | -6/Deep Caves | Found Zio. Weapon Casing 38333 | -6/Deep Caves | Found Zio. Weapon Casing 38426 | -6/Deep Caves | Found Zio. Heavy Carapace 38499 | -6/Deep Caves | Found Zio. Weapon Casing 38503 | -6/Deep Caves | Found Zio. Weapon Casing 38521 | -6/Deep Caves | Build established: Scavenger-Mutant 38833 | -6/Deep Caves | Discovered new exit (range 11) 39136 | -6/Deep Caves | Spotted as-12654 39165 | -6/Deep Caves | Destroyed as-12654 39203 | -6/Deep Caves | Spotted as-15668 39224 | -6/Deep Caves | Exposed GOLEM chamber 39228 | -6/Deep Caves | Destroyed as-15668 39433 | -6/Deep Caves | Triggered Deep Caves wall 39433 | -6/Deep Caves | Spotted AS-21387 39433 | -6/Deep Caves | Spotted AS-18227 39443 | -6/Deep Caves | Destroyed AS-18227 39448 | -6/Deep Caves | Destroyed AS-21387 39467 | -6/Deep Caves | Destroyed 36 combat bots 39479 | -6/Deep Caves | Found Prototype Energy Cannon 39479 | -6/Deep Caves | Identified Latent Energy Streamer 39495 | -6/Deep Caves | Found GOLEM Unit 39501 | -6/Deep Caves | Found GOLEM Unit 39506 | -6/Deep Caves | Found GOLEM Unit 39780 | -6/Deep Caves | Build established: Golem 39893 | -6/Deep Caves | Found GOLEM Unit 40831 | -6/Deep Caves | Identified exit to Proximity Caves 40834 | -6/Deep Caves | Entered Proximity Caves 41197 | -5/Proximity Caves | Learned 4 Factory zone layouts 43246 | -5/Proximity Caves | Entered Factory 43246 | -5/Factory | Evolved 2 slots: Propulsion x1, Utility x1 43247 | -5/Factory | Identified exit to Upper Caves 43248 | -5/Factory | Identified exit to Factory 43248 | -5/Factory | Identified exit to Extension 43251 | -5/Factory | Loaded intel: 27 terminal locations 44424 | -5/Factory | Entered Extension 44908 | -5/Extension | Build established: Commander-Golem 45340 | -5/Extension | Spotted B-75 Beast 45348 | -5/Extension | Spotted B-75 Beast 45359 | -5/Extension | Allies destroyed B-75 Beast 45388 | -5/Extension | Allies destroyed B-75 Beast 45425 | -5/Extension | Rescued a captive Derelict 45425 | -5/Extension | Rescued a captive Derelict 45521 | -5/Extension | Rescued a captive Derelict 45524 | -5/Extension | Rescued a captive Derelict 45630 | -5/Extension | Rescued a captive Derelict 45799 | -5/Extension | Rescued a captive Derelict 45854 | -5/Extension | Rescued a captive Derelict 45855 | -5/Extension | Rescued a captive Derelict 45894 | -5/Extension | Rescued A7 46082 | -5/Extension | Discovered exit to Factory (range 13) 46087 | -5/Extension | Discovered new exit (range 6) 46100 | -5/Extension | Identified exit to Cetus 46108 | -5/Extension | Entered Cetus 46108 | -5/Cetus | Accompanied by 12 allies (A7) 46113 | -5/Cetus | Acquired a Cetus Manufacturing Module code from A7 46128 | -5/Cetus | Spotted Cetus Guard 46128 | -5/Cetus | Spotted Cetus Guard 46132 | -5/Cetus | Spotted Cetus Guard 46135 | -5/Cetus | Allies destroyed Cetus Guard 46140 | -5/Cetus | Spotted Cetus Guard 46147 | -5/Cetus | Allies destroyed Cetus Guard 46156 | -5/Cetus | Allies destroyed Cetus Guard 46159 | -5/Cetus | Allies destroyed Cetus Guard 46231 | -5/Cetus | Started Cetus Manufacturing Module 46252 | -5/Cetus | Escorted A7 to Cetus Mainframe 46256 | -5/Cetus | Manufactured an Enhanced Grunt 46266 | -5/Cetus | Discovered new exit (range 22) 46281 | -5/Cetus | Manufactured an Enhanced Grunt 46306 | -5/Cetus | Manufactured an Enhanced Grunt 46319 | -5/Cetus | Spotted Cetus Guard 46320 | -5/Cetus | Spotted Cetus Guard 46324 | -5/Cetus | Spotted Cetus Guard 46329 | -5/Cetus | Discovered exit to Factory (range 21) 46329 | -5/Cetus | Spotted Cetus Guard 46331 | -5/Cetus | Manufactured an Enhanced Grunt 46349 | -5/Cetus | Destroyed Cetus Guard 46356 | -5/Cetus | Manufactured an Enhanced Grunt 46357 | -5/Cetus | Destroyed Cetus Guard 46362 | -5/Cetus | Destroyed Cetus Guard 46367 | -5/Cetus | Allies destroyed Cetus Guard 46372 | -5/Cetus | Found Prototype Device 46373 | -5/Cetus | Identified Exp. Thermal Shield 46382 | -5/Cetus | Extracted ID and sensor layout for unrecognized location from A7's data core 46396 | -5/Cetus | Met Revision 17 46396 | -5/Cetus | Destroyed Revision 17 46466 | -5/Cetus | Identified exit to Archives 46468 | -5/Cetus | Entered Archives 46468 | -5/Archives | Accompanied by 4 allies 46547 | -5/Archives | Discovered exit to Factory (range 15) 46579 | -5/Archives | Discovered new exit (range 20) 46590 | -5/Archives | Discovered new exit (range 13) 46698 | -5/Archives | Unable to access archive contents 46733 | -5/Archives | Identified exit to Hub_04(d) 47052 | -5/Archives | System corruption reached 10% 47340 | -5/Archives | Entered Hub_04(d) 47340 | -5/Hub_04(d) | Accompanied by 4 allies 47347 | -5/Hub_04(d) | Discovered exit to Factory (range 14) 47675 | -5/Hub_04(d) | Discovered exit to Factory (range 6) 47761 | -5/Hub_04(d) | Build established: Golem 48058 | -5/Hub_04(d) | Network Hub disabled 48102 | -5/Hub_04(d) | Spotted Lightning 48123 | -5/Hub_04(d) | Network Hub disabled 48123 | -5/Hub_04(d) | Spotted Lightning 48129 | -5/Hub_04(d) | Spotted Lightning 48142 | -5/Hub_04(d) | Entered Factory 48142 | -4/Factory | Evolved 2 slots: Propulsion x1, Utility x1 49042 | -4/Factory | Identified exit to Upper Caves 49042 | -4/Factory | Identified exit to Armory 49423 | -4/Factory | Entered Upper Caves 49978 | -4/Upper Caves | Attracted the attention of an 0b10 checkpoint 50451 | -4/Upper Caves | Identified exit to Upper Caves 50923 | -4/Upper Caves | Learned Research garrison access intel 52114 | -4/Upper Caves | Entered another Upper Caves area 52246 | -4/Upper Caves | Discovered new exit (range 8) 52258 | -4/Upper Caves | Identified exit to Research 52691 | -4/Upper Caves | Learned Factory trap positions 52691 | -4/Upper Caves | Learned Extension trap positions 52691 | -4/Upper Caves | Learned Extension security intel 52987 | -4/Upper Caves | Attracted the attention of an 0b10 checkpoint 54527 | -4/Upper Caves | Build established: Trapper-Golem 55081 | -4/Upper Caves | Discovered new exit (range 4) 55187 | -4/Upper Caves | Identified exit to Warlord 55521 | -4/Upper Caves | Entered Warlord 55670 | -4/Warlord | Found Prototype Device 55671 | -4/Warlord | Identified Minesniffer Drone Bay 55844 | -4/Warlord | Build established: Golem 56246 | -4/Warlord | Visited the Vortex Lab 56258 | -4/Warlord | Found Prototype Energy Gun 56258 | -4/Warlord | Identified Vortex Rifle 56259 | -4/Warlord | Warlord's base attacked by MAIN.C 56262 | -4/Warlord | Found Vortex Rifle 56265 | -4/Warlord | Found Prototype Launcher 56265 | -4/Warlord | Identified Vortex Catalyst Activator 56364 | -4/Warlord | Build established: Commander-Golem 56365 | -4/Warlord | Met Warlord 56381 | -4/Warlord | Opened Warlord's prototype stash 56388 | -4/Warlord | Found Prototype Reactor 56388 | -4/Warlord | Identified Vortex Chain Reactor 56394 | -4/Warlord | Found Exp. Targeting Computer 56402 | -4/Warlord | Found Prototype Device 56402 | -4/Warlord | Identified Exp. Focal Shield 56413 | -4/Warlord | Found Prototype Hackware 56604 | -4/Warlord | Spotted Striker 56609 | -4/Warlord | Warlord forces counterattacked 56659 | -4/Warlord | Spotted Striker 56690 | -4/Warlord | Found Prototype Device 56690 | -4/Warlord | Identified Adv. Kinecellerator 56720 | -4/Warlord | Discovered new exit (range 12) 56735 | -4/Warlord | Identified exit to Proximity Caves 56739 | -4/Warlord | Entered Proximity Caves 56739 | -3/Proximity Caves | Accompanied by 4 allies 56934 | -3/Proximity Caves | Attracted the attention of an 0b10 checkpoint 57286 | -3/Proximity Caves | Build established: Commander-Skirmisher 57894 | -3/Proximity Caves | Build established: Golem 58294 | -3/Proximity Caves | Discovered exit to Research (range 8) 58323 | -3/Proximity Caves | Build established: Skirmisher 58325 | -3/Proximity Caves | Entered Research 58325 | -3/Research | Accompanied by 3 allies 58325 | -3/Research | Evolved 2 slots: Propulsion x2 58326 | -3/Research | Loaded intel: 4 garrison access locations 58545 | -3/Research | Incoming assault squad redirected 58585 | -3/Research | Discovered new exit (range 16) 58651 | -3/Research | Identified exit to Testing 58661 | -3/Research | Entered Testing 58758 | -3/Testing | Found Prototype Ballistic Cannon 58981 | -3/Testing | Identified System Mapper 59259 | -3/Testing | Identified Omega Cannon 59280 | -3/Testing | Build established: Hacker-Skirmisher 59294 | -3/Testing | Found Prototype Protection 59294 | -3/Testing | Identified Med. Regenerative Plating 59299 | -3/Testing | Found Prototype Protection 59299 | -3/Testing | Identified Hvy. Regenerative Plating 59307 | -3/Testing | Found Prototype Protection 59519 | -3/Testing | Found Prototype Hackware 59669 | -3/Testing | Discovered new exit (range 10) 59836 | -3/Testing | Build established: Hacker-Mutant 59897 | -3/Testing | Found Prototype Launcher 59897 | -3/Testing | Identified Tactical Quantum Warhead 60136 | -3/Testing | Found Prototype Energy Gun 60137 | -3/Testing | Identified Warp Gun 60184 | -3/Testing | Identified Ghost Barrier 60471 | -3/Testing | Found Prototype Energy Cannon 60643 | -3/Testing | Identified exit to Research 60724 | -3/Testing | Entered Research 60724 | -2/Research | Warlord forces began assault on 0b10 60724 | -2/Research | Evolved 2 slots: Utility x2 60725 | -2/Research | Identified SHELL Armor 60787 | -2/Research | Identified exit to Quarantine 60834 | -2/Research | Research machine network offline 60879 | -2/Research | Met up with Warlord 61152 | -2/Research | Spotted Striker 61153 | -2/Research | Spotted Striker 61173 | -2/Research | Destroyed Striker 61176 | -2/Research | Destroyed Striker 61186 | -2/Research | Borebot progress halted 61206 | -2/Research | Destroyed 7 combat bots 61237 | -2/Research | Borebot progress halted 61269 | -2/Research | Entered Quarantine 61279 | -2/Quarantine | Cryocooling Duct disabled 61292 | -2/Quarantine | Found Alien Artifact 61294 | -2/Quarantine | Ambient heat levels rising (+20) 61294 | -2/Quarantine | Non-combat units ordered to evacuate 61336 | -2/Quarantine | Cryocooling Duct disabled 61351 | -2/Quarantine | Ambient heat levels rising (+20) 61351 | -2/Quarantine | Combat units ordered to evacuate 61358 | -2/Quarantine | Found Alien Slashing Weapon 61436 | -2/Quarantine | Found Alien Artifact 61445 | -2/Quarantine | Found Alien Artifact 61451 | -2/Quarantine | Quarantine Guard activated 61453 | -2/Quarantine | Found Alien Artifact 61456 | -2/Quarantine | Found Alien Artifact 61469 | -2/Quarantine | Spotted Quarantine Guard 61469 | -2/Quarantine | Spotted Quarantine Guard 61472 | -2/Quarantine | Cryocooling Duct disabled 61475 | -2/Quarantine | Identified Hpw. Transdimensional Reconstructor 61475 | -2/Quarantine | Warped through subspace 61475 | -2/Quarantine | Discovered new exit (range 11) 61475 | -2/Quarantine | Spotted Quarantine Guard 61484 | -2/Quarantine | Destroyed Quarantine Guard 61487 | -2/Quarantine | Ambient heat levels rising (+20) 61603 | -2/Quarantine | Spotted Quarantine Guard 61612 | -2/Quarantine | Destroyed Quarantine Guard 61676 | -2/Quarantine | Spotted Fortress 61784 | -2/Quarantine | Discovered new exit (range 5) 61789 | -2/Quarantine | Identified exit to Section 7 61792 | -2/Quarantine | Entered Section 7 61870 | -2/Section 7 | Identified exit to Access 62058 | -2/Section 7 | Found Alien Artifact 62116 | -2/Section 7 | Identified Sigix Broadsword 62159 | -2/Section 7 | Identified Integrity Redistributor 62159 | -2/Section 7 | Identified Transdimensional Reconstructor (x2) 62401 | -2/Section 7 | Found Alien Artifact 62401 | -2/Section 7 | Identified Integrated Mediator 62401 | -2/Section 7 | Installed Integrated Mediator, increased core attachment efficiency. 62420 | -2/Section 7 | Identified Dimensional Node Initializer 62420 | -2/Section 7 | Initialized slip node 62470 | -2/Section 7 | Found Alien Artifact 62470 | -2/Section 7 | Identified Integrated Dissipator 62470 | -2/Section 7 | Installed Integrated Dissipator, increased core heat dissipation (+20) 62496 | -2/Section 7 | Spotted S7 Guard 62517 | -2/Section 7 | Destroyed S7 Guard 62683 | -2/Section 7 | Found Alien Artifact 62728 | -2/Section 7 | Found Alien Artifact 62728 | -2/Section 7 | Identified Integrated Reactor 62728 | -2/Section 7 | Installed Integrated Reactor, increased core energy generation (+10) 62916 | -2/Section 7 | Found Alien Artifact 63247 | -2/Section 7 | Identified Microwarp Drive 63253 | -2/Section 7 | Spotted Alpha 7 63265 | -2/Section 7 | Spotted B-99 Colossus 63308 | -2/Section 7 | Found Alien Artifact 63309 | -2/Section 7 | Identified Core Expander 63309 | -2/Section 7 | Installed Core Expander, added new Power slot 63333 | -2/Section 7 | Found Alien Artifact 63333 | -2/Section 7 | Identified LRC Matter Compressor 63333 | -2/Section 7 | Installed LRC Matter Compressor, increased matter storage capacity (+125) 63339 | -2/Section 7 | Warped through subspace to slip node 63343 | -2/Section 7 | Used Integrity Redistributor, redistributed integrity from core (-191) 63346 | -2/Section 7 | Entered Access 63346 | -1/Access | Evolved 2 slots: Utility x2 63860 | -1/Access | Garrison activated, responded to threat 63915 | -1/Access | Destroyed 7 combat bots 64060 | -1/Access | Identified exit to Surface 64152 | -1/Access | Fabricated Exp. Transmission Jammer (x1) 64464 | -1/Access | Destroyed 10 combat bots 64511 | -1/Access | Discovered new exit (range 7) 64521 | -1/Access | Identified exit to Command 64529 | -1/Access | Entered Command 64633 | -1/Command | Found Antimissile System 64636 | -1/Command | Found Antimissile System 64778 | -1/Command | Identified Potential Cannon 64822 | -1/Command | First assault squad dispatched 65055 | -1/Command | Build established: Generator-Mutant 65116 | -1/Command | Spotted M Guard 65128 | -1/Command | Spotted Combat Programmer 65129 | -1/Command | Spotted Combat Programmer 65139 | -1/Command | Destroyed Combat Programmer 65140 | -1/Command | System corruption reached 10% 65147 | -1/Command | Spotted M Guard 65156 | -1/Command | Destroyed M Guard 65167 | -1/Command | Destroyed M Guard 65177 | -1/Command | Destroyed Combat Programmer 65177 | -1/Command | All MAIN.C guards destroyed 65205 | -1/Command | Found Ragnarok Missile Launcher 65654 | -1/Command | Met MAIN.C 65654 | -1/Command | 0b10 Conduit disabled 65748 | -1/Command | Destroyed MAIN.C Shell 65751 | -1/Command | MAIN.C activated Command garrisons 65762 | -1/Command | Lost 3 parts (1p2u) 65788 | -1/Command | Destroyed MAIN.C 65819 | -1/Command | Discovered exit to Surface (range 40) 65819 | -1/Command | Discovered exit to Surface (range 104) 65819 | -1/Command | Identified Core Regenerator 65819 | -1/Command | Extracted map data and part IDs from MAIN.C's data core 65912 | -1/Command | Destroyed 8 combat bots 65998 | -1/Command | Destroyed 8 combat bots 66111 | -1/Command | Found Zero-point Reactor 66127 | -1/Command | Found Zero-point Reactor 66133 | -1/Command | Found Exp. System Purifier 66300 | -1/Command | Used Core Regenerator, restored core integrity (+335) 66309 | -1/Command | Found Centrium Heavy Armor Plating 66313 | -1/Command | Found Spectral Analyzer 66320 | -1/Command | Found Hyp. Multirail 66537 | *** | Establishing 0b11! Last Messages --------------- 66292_ Exp. System Purifier purges 1% system corruption (1%). 66294_ Exp. System Purifier purges 1% system corruption (0%). 66294_ Dropped Antimissile System. 66299_ Acquired Graviton Cannon. 66300_ Core integrity regenerated (+335). 66304_ Acquired Graviton Cannon. 66308_ Discarded Adv. Target Analyzer. 66309_ Dropped Centrium Medium Armor Plating. 66309_ Acquired Centrium Heavy Armor Plating. 66312_ Dropped Adv. Component Analysis Suite. 66313_ Acquired Spectral Analyzer. 66320_ Dropped Adv. Targeting Computer. 66320_ Acquired Hyp. Multirail. 66333_ Acquired 19 matter. 66360_ Dropped Biometal Heavy Treads. 66361_ Acquired Adv. Heavy Siege Treads. 66394_ Acquired 19 matter. 66394_ Acquired 31 matter. 66457_ Wave Inhibitor disabled. 66493_ Acquired 7 matter. Map ----- +----------------------------------------------------+ | ""# #?????##### ! # #???? | | T# #?????????# "" # #???? | | ""# "" #?????????# """" # #???? | | ""# """" ########### """" # #???? | | ""# """" + "" # #???? | | # "" # #######???? | | # #+#+####### ####??????? | | ### # ### ^ #??????? | | ??# # #?#" """" #??????? | | ############ #?#""[ """" #??????? | | # "" ###"" =^ """" #??????? | | # """" "#""* ! """" ## #??????? | | """Y""" # """" ""#"" ## #??????? | | """"""" # "" ""#"T% ## #??????? | | # ""#"" #+####???? | | # ""#"" """" # #???? | | ####+####### "" T"#"" """" # #???? | | + """" ""#"" """" # #?### | | ^^ #### """" ""#" """" # #?#?? | | ^^ #??# "" ""# + #?#?# | | #??# ""# # #?#?# | | #+## #??# "# # #?#?# | | # #??# ### #### # #?#?# | | # #??# #?# #### % # #?#?# | | # #??# #?# ## ######?#?# | | # #??##+#####+#?# @ ## ######?#?# | | # #???# #???# #?# #" / + =#?#?# | | # #???# #???# #?######"[ # #?#?# | | #### ##### ##### #######""% # #?#?# | | ???# [ " !!#?#?# | | ???#######################""""" " !!#?#?# | | ?????????????????????????### " " ###?# | | ???????????????????????????####% " #?# | | ?????????????????????????###### #?# | | ?????????????????????????# # *#### | | ????????????############## # ==%!%% | | ????????????# """" # =# [ =!!%% | | ????????????# ""R"" # " *==! | | ????????????# "" "" # " %[ #### | | ????????????# # " ""##" * ##""##?# | | ????????????# # "=""## ###?# | | ????????????# "" # " " "" #?#?# | | ????????????# """" # # #""" #?#?? | | ????????????# """" ###### #"R "" "" #?### | | #########???# "" + #""" ""R"" #???? | | """""# #???# ! ###### #""" """" #???? | | "" + #???# #????# #### #???? | | "" " #???# ###### #??# #???? | | "" " "???##########+### #########+####???? | | """ " "???# #??????? | +----------------------------------------------------+ Best States ------------- Heat Dissipation 162 Coolant Potential 120 Energy Generation 93 Energy Capacity 2350 Matter Stores 425 Matter Capacity 425 Sight Range 24 Robot Scan Range 20 Terrain Scan Range 16 Terrain Scan Density 10 Jamming Range 22 Additional Mass Support 20 Base Temperature (-) 100 Armor Coverage 2700 Resistance: KI 20 Resistance: TH 30 Resistance: EX 15 Resistance: EM 15 Resistance: I 15 Resistance: S 15 Resistance: P 15 Utility Shielding 33 Weapon Shielding 100 Point Defense Rating 480 Weapon Cycling 20 Phase Shifting 8 Evasion (%) 50 Targeting Accuracy 24 Launcher Accuracy 20 Target Analysis 8 Core Analysis 8 Armor Integrity Analysis 50 Recoil Reduction 6 Matter Filtering 50 Offensive Hacking 22 Defensive Hacking 20 Trap Extractor Capacity 8 Item Schematics ----------------- Huge Storage Unit | -10/Materials | Hacked Imp. Transmission Jammer | -7/Factory | Hacked Combat Drone Bay | -7/Data Miner | Free Lgt. Regenerative Plating | -7/Data Miner | Free Cld. Cesium-ion Thruster | -7/Data Miner | Free Thermal Defense Suite | -7/Data Miner | Free Antimatter Cannon | -7/Data Miner | Free Gyrokinetic Inverter | -7/Data Miner | Free Lyr. Heavy Armor Plating | -7/Data Miner | Free KE Penetrator | -7/Data Miner | Free Imp. Focal Shield | -7/Data Miner | Free Nuclear Pulse Array | -7/Data Miner | Free Adv. Power Amplifier | -7/Data Miner | Free Enh. Optical Array | -6/Zion | Archive Imp. Plasma Cutter | -6/Zion | Archive Matter Compressor | -6/Zion | Archive Imp. Remote Datajack | -6/Zion | Archive Spk. Medium Treads | -6/Zion | Archive Neutrino Core | -6/Zion | Archive Arm. Leg | -6/Zion | Archive Imp. System Guard | -6/Zion | Archive Railgun | -6/Zion | Archive Imp. Particle Charger | -6/Zion | Archive Adv. Plasma Cannon | -6/Zion | Archive Mak. Hover Unit | -6/Zion | Archive Imp. Recalibrator | -6/Zion | Archive Imp. Coolant Injector | -6/Zion | Archive Mak. Cloaking Device | -6/Zion | Archive Lrn. Terrain Scanner | -5/Extension | Hacked Imp. System Restoration Module | -3/Testing | Scanalyzed Biometal Heavy Treads | -2/Research | Hacked Lgt. Antimatter Cannon | -2/Section 7 | Archive Exp. Optical Array | -2/Section 7 | Archive Prc. Energy Filter | -2/Section 7 | Archive Adv. Thermal Defense Suite | -2/Section 7 | Archive Robot Schematics ------------------ M-14 Sweeper | -7/Data Miner | Free B-48 Gladiator | -7/Data Miner | Free Y-54 Guardian | -7/Data Miner | Free H-55 Commando | -7/Data Miner | Free S-27 Virus | -7/Data Miner | Free G-50 Soldier | -6/Zion | Archive A-02 Transporter | -6/Zion | Archive K-01 Serf | -6/Zion | Archive L-61 Swordsman | -6/Zion | Archive Fabricated ------------ KE Penetrator | x2 | -7/Factory | Preloaded Exp. Transmission Jammer | x1 | -1/Access | Preloaded Alien Tech Used ----------------- High-powered Transdimensional Reconstructor Sigix Broadsword Integrated Mediator Dimensional Node Initializer Integrated Dissipator Integrated Reactor Microwarp Drive Core Expander LRC Matter Compressor Transdimensional Reconstructor Integrity Redistributor Core Regenerator Achievements -------------- None Challenges ------------ None Game ------ Seed InsulatedWeldingDevice Manual? 0 Play Time 10:33:16 Cumulative 268.4 hours Start 2022.08.06 @ 08:58:08 End 2022.08.10 @ 20:05:57 Sessions 48 Manual Loads 0 Difficulty Rogue Special Mode None Game No. 39 Rogue 32 Adventurer 1 Explorer 6 Win Type 1 Total 17 Types 5/2/6/0/0/1/1/1/1 Lore% 83 Gallery% 84 Achievement% 68 Wizard Run 0 Options --------- ASCII 0 Keyboard 0 Movement Mouse Keybinds 0 Fullscreen 1 Font 18/SmallcapsGlow Map View 76x50 Tactical HUD 1 Map Filters NONE Filters NONE Steam 1 RUN: 93357b90-81a1-4870-82e3-9799b7775f33